2CCN - Level 2 Cost Centre Name,,9CCN - Level 9 Cost Centre Name,9CCC - Level 9 Cost Centre Code,9AN - Level 9 Account Name,9AC - Level 9 Account Code,Transaction Description,Date Paid,Transaction Reference,Analysed Amount,2AC - Level 2 Account Codes,Supplier Name,Supplier Code
Gloucester City Council,23UE,REDACTED,REDACTED,REDACTED,REDACTED,REDACTED,03/08/2015,REDACTED,35,NET,REDACTED,REDACTED
Gloucester City Council,23UE,Business Transformation & Tech,RT700,Fees For Services Received,5350,Charges June - Aug 2015,03/08/2015,405357,35666.19,NET,Danwood Group Limited,09555G
Gloucester City Council,23UE,Business Transformation & Tech,RT700,Telephones And Fax,5410,ACCT 78441964/8,03/08/2015,405084,65.5,NET,Everything Everywhere Ltd (T-Mobile),57543S
Gloucester City Council,23UE,Business Transformation & Tech,RT700,Telephones And Fax,5410,Charges June 2015,03/08/2015,405347,2145.72,NET,Everything Everywhere Ltd (T-Mobile),57543S
Gloucester City Council,23UE,Cemeteries,HC300,Major R And M - Vehicles,4010,Hedgetrimmer,03/08/2015,405522,399.2,NET,Spaldings,48759Y
Gloucester City Council,23UE,Client Revs & Bens Contract,RT240,Bailiffs Fees,5368,VAT on statutory fees,03/08/2015,405520,0,NET,Bristow & Sutor,05450M
Gloucester City Council,23UE,Client Revs & Bens Contract,RT240,Bailiffs Fees,5368,VAT on statutory fees,03/08/2015,405521,0,NET,Bristow & Sutor,05450M
Gloucester City Council,23UE,Client Revs & Bens Contract,RT240,Bailiffs Fees,5368,VAT on statutory fees,03/08/2015,405530,0,NET,Bristow & Sutor,05450M
Gloucester City Council,23UE,Community Safety Projects,FP500,Basic Pay - Temporary Staff,2751,Temporary staff w/e 10/07/2015,03/08/2015,405560,467.2,NET,Travail Employment Ltd,49371W
Gloucester City Council,23UE,Contact Centre,RB300,Clothing,5200,Scarf,03/08/2015,405516,56.9,NET,Meltemi Company Clothing Limited,54572N
Gloucester City Council,23UE,Guildhall Events,LA200,Fees For Services Received,5350,Audio Engineer,03/08/2015,405533,150,NET,Leap Audio,15059W
Gloucester City Council,23UE,REDACTED,REDACTED,REDACTED,REDACTED,REDACTED,03/08/2015,REDACTED,160,NET,REDACTED,REDACTED
Gloucester City Council,23UE,REDACTED,REDACTED,REDACTED,REDACTED,REDACTED,03/08/2015,REDACTED,160,NET,REDACTED,REDACTED
Gloucester City Council,23UE,Herbert Reception Upgrade,RY201,Contract Payments,20,Retention - Reception Refurbishment,03/08/2015,405821,4478.98,CAP,Pj Engineering Consultants Ltd,14428W
Gloucester City Council,23UE,Shopmobility,PE200,Maintenance Of Equipment,5030,Various Reapirs,03/08/2015,405571,1015.48,NET,Disabled Care & Mobility,12675V
Gloucester City Council,23UE,Tic Rovercard Sales,LT101,Materials For Sale,5080,Tickets May 2015,03/08/2015,404490,5398.2,NET,Stagecoach Services Ltd,56554W
Gloucester City Council,23UE,Tic Rovercard Sales,LT101,Sale Of Goods And Services,9230,Tickets May 2015,03/08/2015,404490,-449.85,NET,Stagecoach Services Ltd,56554W
Gloucester City Council,23UE,Building Control,PT400,Advertising And Publicity,5702,Advertisement 16/07/2015,04/08/2015,405514,175.3,NET,Local World Ltd,08556P
Gloucester City Council,23UE,Cemeteries,HC300,Basic Pay - Temporary Staff,2751,Temporary staff w/e 05/07/2015,04/08/2015,405511,375.36,NET,Premiere Employment Group Ltd,55468Z
Gloucester City Council,23UE,Cemeteries,HC300,Basic Pay - Temporary Staff,2751,Temporary staff w/e 05/07/2015,04/08/2015,405512,351.9,NET,Premiere Employment Group Ltd,55468Z
Gloucester City Council,23UE,Cemeteries,HC300,Grave Indicators,5054,Plaques,04/08/2015,405651,732,NET,Arkell & Hurcombe,59812T
Gloucester City Council,23UE,Cemeteries,HC300,Operational Materials,5070,Various Items,04/08/2015,405652,46.94,NET,Spaldings,48759Y
Gloucester City Council,23UE,City Museum Catering,LM202,Catering Provisions -Food,5110,Milk,04/08/2015,405710,4.6,NET,Total Produce Gloucester,12645E
Gloucester City Council,23UE,City Museum Catering,LM202,Catering Provisions -Food,5110,Milk,04/08/2015,405711,4.6,NET,Total Produce Gloucester,12645E
Gloucester City Council,23UE,Coll Fund Revenue Account,ZC100,County Council Precept,7460,SEPTEMBER 2015 PRECEPT PAYMENT,04/08/2015,405925,3893978.2,NET,Gloucestershire County Council,18650D
Gloucester City Council,23UE,Coll Fund Revenue Account,ZC100,Nndr Central Share,7474,BRR POOLING PAYMENT GC LOCAL SHARE,04/08/2015,405915,421339,NET,Gloucestershire County Council,18650D
Gloucester City Council,23UE,Coll Fund Revenue Account,ZC100,Nndr Tariff,7473,BRR POOLING PAYMENT GCBRR5,04/08/2015,405920,1320307,NET,Stroud District Council,74737T
Gloucester City Council,23UE,Coll Fund Revenue Account,ZC100,Police Precept,7461,SEPTEMBER 2015 PRECEPT PAYMENT,04/08/2015,405929,741766.3,NET,"Police & Crime Commissioner, Gloucestershire",49521B
Gloucester City Council,23UE,Contact Centre,RB300,Stationery,5302,Stationery,04/08/2015,405674,54.16,NET,Lyreco Uk Ltd,11746G
Gloucester City Council,23UE,Contact Centre,RB300,Stationery,5302,Stationery,04/08/2015,405675,2.58,NET,Lyreco Uk Ltd,11746G
Gloucester City Council,23UE,Contact Centre,RB300,Uniforms,5201,Jacket,04/08/2015,405658,54.95,NET,Meltemi Company Clothing Limited,54572N
Gloucester City Council,23UE,Council Streetcare Team,HI101,Contracted Services,6970,55 LTR RECYCLING BOXES,04/08/2015,404511,12007.05,NET,Enterprise (Aol) Ltd,06695G
Gloucester City Council,23UE,Council Streetcare Team,HI101,Contracted Services,6970,wood collection 5/8/2013,04/08/2015,404836,540.58,NET,Enterprise (Aol) Ltd,06695G
Gloucester City Council,23UE,Council Streetcare Team,HI101,Contracted Services,6970,Wood Recycling,04/08/2015,404512,448,NET,Enterprise (Aol) Ltd,06695G
Gloucester City Council,23UE,Countryside Unit,LP201,Routine R And M - Vehicles,4011,Various Items,04/08/2015,405638,628.1,NET,Loxston Groundcare,14309F
Gloucester City Council,23UE,Countryside Unit,LP201,Vocational Training,2970,CMA Study Day,04/08/2015,405633,65,NET,Countryside Management Association,56073U
Gloucester City Council,23UE,Crematorium,HC200,Memorial Plaques,5053,Plaques,04/08/2015,405647,58,NET,Arkell & Hurcombe,59812T
Gloucester City Council,23UE,Crematorium,HC200,Memorial Plaques,5053,Plaques,04/08/2015,405649,96,NET,Arkell & Hurcombe,59812T
Gloucester City Council,23UE,Crematorium,HC200,Memorial Plaques,5053,Plaques,04/08/2015,405650,466,NET,Arkell & Hurcombe,59812T
Gloucester City Council,23UE,Crematorium,HC200,National Assist Act Burial Exp,5593,funeral costs,04/08/2015,405627,628,NET,Selim Smith & Co Funeral Directors,15156X
Gloucester City Council,23UE,Crematorium,HC200,National Assist Act Burial Exp,5593,funeral costs,04/08/2015,405672,623,NET,Selim Smith & Co Funeral Directors,15156X
Gloucester City Council,23UE,Economic Development,FP300,Business Grant,7116,Business Rent Grant,04/08/2015,405643,500,NET,The Laundry Lounge,14078B
Gloucester City Council,23UE,Employers Pension Contribs,ZR355,Pension Contribs Incl Backf,2901,Pension deficit for GCC July 2015,04/08/2015,405910,217666.66,NET,Gloucestershire County Council,10614L
Gloucester City Council,23UE,REDACTED,REDACTED,REDACTED,REDACTED,REDACTED,04/08/2015,REDACTED,46.88,NET,REDACTED,REDACTED
Gloucester City Council,23UE,REDACTED,REDACTED,REDACTED,REDACTED,REDACTED,04/08/2015,REDACTED,100,NET,REDACTED,REDACTED
Gloucester City Council,23UE,REDACTED,REDACTED,REDACTED,REDACTED,REDACTED,04/08/2015,REDACTED,100,NET,REDACTED,REDACTED
Gloucester City Council,23UE,REDACTED,REDACTED,REDACTED,REDACTED,REDACTED,04/08/2015,REDACTED,50,NET,REDACTED,REDACTED
Gloucester City Council,23UE,REDACTED,REDACTED,REDACTED,REDACTED,REDACTED,04/08/2015,REDACTED,50,NET,REDACTED,REDACTED
Gloucester City Council,23UE,REDACTED,REDACTED,REDACTED,REDACTED,REDACTED,04/08/2015,REDACTED,160,NET,REDACTED,REDACTED
Gloucester City Council,23UE,REDACTED,REDACTED,REDACTED,REDACTED,REDACTED,04/08/2015,REDACTED,170,NET,REDACTED,REDACTED
Gloucester City Council,23UE,REDACTED,REDACTED,REDACTED,REDACTED,REDACTED,04/08/2015,REDACTED,440,NET,REDACTED,REDACTED
Gloucester City Council,23UE,Guildhall Events,LA200,Printing,5300,Whats on Booklets,04/08/2015,405661,1153,NET,Paddock Print,03014H
Gloucester City Council,23UE,Hackney Carriages,HL100,Other Minor Supplies Services,5590,Licence Plate Set,04/08/2015,405630,512.9,NET,Mogo Uk,56615B
Gloucester City Council,23UE,Head Of Financial Services,GO100,Vocational Training,2970,training course fees,04/08/2015,405624,300,NET,Lg Futures,11251S
Gloucester City Council,23UE,Hillfield Gardens S106,LY112,Contract Payments,20,Melcourt Spruce Ornamental Mulch,04/08/2015,405548,2336,CAP,D R Howse Services,13597E
Gloucester City Council,23UE,Hillfield Gardens Sensory Gard,LY146,Contract Payments,20,Retention - Sensory Gardens,04/08/2015,405549,503.58,CAP,D R Howse Services,13597E
Gloucester City Council,23UE,REDACTED,REDACTED,REDACTED,REDACTED,REDACTED,04/08/2015,REDACTED,272.72,NET,REDACTED,REDACTED
Gloucester City Council,23UE,REDACTED,REDACTED,REDACTED,REDACTED,REDACTED,04/08/2015,REDACTED,231.6,NET,REDACTED,REDACTED
Gloucester City Council,23UE,REDACTED,REDACTED,REDACTED,REDACTED,REDACTED,04/08/2015,REDACTED,300,NET,REDACTED,REDACTED
Gloucester City Council,23UE,REDACTED,REDACTED,REDACTED,REDACTED,REDACTED,04/08/2015,REDACTED,500,NET,REDACTED,REDACTED
Gloucester City Council,23UE,Housing Works In Default,HD500,Clearance And Cleansing Fees,5384,6 SOMERSET PLACE,04/08/2015,405270,1810,NET,Rj Contracting (Environmental) Ltd,07429H
Gloucester City Council,23UE,Internal Health & Safety,EH110,Other Minor Supplies Services,5590,Servicare Renewal 15/16,04/08/2015,405552,145,NET,Evac+Chair International Ltd,10907S
Gloucester City Council,23UE,Internal Health & Safety,EH110,Other Minor Supplies Services,5590,Servicare Renewal 15/16,04/08/2015,405553,90,NET,Evac+Chair International Ltd,10907S
Gloucester City Council,23UE,Internal Health & Safety,EH110,Other Minor Supplies Services,5590,Servicare Renewal 15/16,04/08/2015,405554,90,NET,Evac+Chair International Ltd,10907S
Gloucester City Council,23UE,Kings Quarter,RY146,Contract Payments,20,Kings Quarter Planning Fees,04/08/2015,405696,25765.5,CAP,Gva Grimley,56359W
Gloucester City Council,23UE,Marketing Gloucester Charges,RC433,Events,5952,Event Programme 15/16,04/08/2015,405569,40000,NET,Marketing Gloucester Ltd,08925E
Gloucester City Council,23UE,Planning Policy,PT300,Basic Pay -Admin /Prof Staff,2601,temporary staff 24/04/15,04/08/2015,405061,2100.3,NET,The Oyster Partnership Limited,14900T
Gloucester City Council,23UE,Safer Stronger Communities,FP841,Other Minor Supplies Services,5590,Coach Hire 15/07/2015,04/08/2015,405634,210,NET,Swanbrook Transport Ltd,15769E
Gloucester City Council,23UE,Tic Stamp Sales,LT102,Postages,5400,Postcard Stamp,04/08/2015,405629,180,NET,Universal Mail United Kingdom Ltd,14283Y
Gloucester City Council,23UE,Vehicles,RS140,Fuel,4012,Fuel,04/08/2015,405695,218.73,NET,Allstar Business Solutions Ltd (Arval),06594A
Gloucester City Council,23UE,Aspire Admin Charges,LC105,Fees For Services Received,5350,Staff Memberships June 2015,05/08/2015,405677,609,NET,Aspire Sports & Cultural Trust,08135V
Gloucester City Council,23UE,Business Transformation & Tech,RT700,Computer Software Maintenance,5427,Restricted Mobile App 15/16,05/08/2015,405971,1250,NET,Modern Mindset Ltd,11065J
Gloucester City Council,23UE,Business Transformation & Tech,RT700,Computer Software Maintenance,5427,Support Fee 15/16,05/08/2015,405970,7010,NET,Modern Mindset Ltd,11065J
Gloucester City Council,23UE,City Museum And Art Gallery,LM200,Printing,5300,City museum JUL-DEC15 whats on guide,05/08/2015,404690,1140,NET,Paddock Print,03014H
Gloucester City Council,23UE,Client Revs & Bens Contract,RT240,Bailiffs Fees,5368,VAT on fees collected,05/08/2015,405639,0,NET,Phoenix Commercial Collections Ltd,13435J
Gloucester City Council,23UE,Client Revs & Bens Contract,RT240,Bailiffs Fees,5368,VAT on fees collected,05/08/2015,405640,0,NET,Phoenix Commercial Collections Ltd,13435J
Gloucester City Council,23UE,Client Revs & Bens Contract,RT240,Bailiffs Fees,5368,VAT on statutory fees,05/08/2015,405641,47.22,NET,Bristow & Sutor,05450M
Gloucester City Council,23UE,Client Revs & Bens Contract,RT240,Bailiffs Fees,5368,VAT on statutory fees,05/08/2015,405642,0,NET,Bristow & Sutor,05450M
Gloucester City Council,23UE,Contact Centre,RB300,Stationery,5302,Paper,05/08/2015,405678,519.7,NET,Premier Paper Group Ltd,09166Y
Gloucester City Council,23UE,Contact Centre,RB300,Stationery,5302,Stationery,05/08/2015,405676,16.05,NET,Lyreco Uk Ltd,11746G
Gloucester City Council,23UE,Contact Centre,RB300,Stationery,5302,stationery,05/08/2015,405825,18,NET,Lyreco Uk Ltd,11746G
Gloucester City Council,23UE,Council Streetcare Team,HI101,General Repair/Maint Buildings,3000,Various Items,05/08/2015,405682,205.47,NET,Ppg Architectural Coatings Uk Limited,04709C
Gloucester City Council,23UE,Folk Museum,LM210,Printing,5300,City museum JUL-DEC15 whats on guide,05/08/2015,404690,1140,NET,Paddock Print,03014H
Gloucester City Council,23UE,REDACTED,REDACTED,REDACTED,REDACTED,REDACTED,05/08/2015,REDACTED,2500,NET,REDACTED,REDACTED
Gloucester City Council,23UE,REDACTED,REDACTED,REDACTED,REDACTED,REDACTED,05/08/2015,REDACTED,400,NET,REDACTED,REDACTED
Gloucester City Council,23UE,REDACTED,REDACTED,REDACTED,REDACTED,REDACTED,05/08/2015,REDACTED,320,NET,REDACTED,REDACTED
Gloucester City Council,23UE,REDACTED,REDACTED,REDACTED,REDACTED,REDACTED,05/08/2015,REDACTED,680.5,NET,REDACTED,REDACTED
Gloucester City Council,23UE,REDACTED,REDACTED,REDACTED,REDACTED,REDACTED,05/08/2015,REDACTED,100,NET,REDACTED,REDACTED
Gloucester City Council,23UE,Guildhall Sound Desks,LY059,Contract Payments,20,Speakers,05/08/2015,404334,10741.17,CAP,Unique Sound Systems,59571S
Gloucester City Council,23UE,REDACTED,REDACTED,REDACTED,REDACTED,REDACTED,05/08/2015,REDACTED,190,NET,REDACTED,REDACTED
Gloucester City Council,23UE,Marketing Gloucester Charges,RC433,Events,5952,Three Choirs Festival Grant 2014,05/08/2015,405568,5000,NET,Marketing Gloucester Ltd,08925E
Gloucester City Council,23UE,Meet & Greet,FP309,Other Minor Income,9900,July 2015 advert,05/08/2015,404868,100,NET,Gtw Media Ltd,14516Y
Gloucester City Council,23UE,Play Area Refurbishment,LY071,Contract Payments,20,SIGNS,05/08/2015,405012,70.3,CAP,Severn Signs Ltd,49841D
Gloucester City Council,23UE,REDACTED,REDACTED,REDACTED,REDACTED,REDACTED,05/08/2015,REDACTED,152.9,NET,REDACTED,REDACTED
Gloucester City Council,23UE,Tic Trading,LT110,Materials For Sale,5080,Various Items,05/08/2015,405681,166,NET,Elgate,11620G
Gloucester City Council,23UE,Utilities,PT502,Electricity Supply,3110,UTILITIES TO JULY 2015,05/08/2015,405723,7792.67,NET,West Mercia Energy,11669Z
Gloucester City Council,23UE,Building Control,PT400,Basic Pay - Temporary Staff,2751,temporary staff w/e 12/07/2015,06/08/2015,405545,1640.35,NET,The Oyster Partnership Limited,14900T
Gloucester City Council,23UE,Building Control,PT400,Basic Pay - Temporary Staff,2751,temporary staff w/e 19/07/2015,06/08/2015,405631,1374.7,NET,The Oyster Partnership Limited,14900T
Gloucester City Council,23UE,REDACTED,REDACTED,REDACTED,REDACTED,REDACTED,06/08/2015,REDACTED,175,NET,REDACTED,REDACTED
Gloucester City Council,23UE,REDACTED,REDACTED,REDACTED,REDACTED,REDACTED,06/08/2015,REDACTED,-21.88,NET,REDACTED,REDACTED
Gloucester City Council,23UE,Civil Parking Enforcement,PT741,Computer Software Maintenance,5427,Processing Fees Nov 14,06/08/2015,396540,1303.67,NET,Chipside Ltd,06535T
Gloucester City Council,23UE,REDACTED,REDACTED,REDACTED,REDACTED,REDACTED,06/08/2015,REDACTED,300,NET,REDACTED,REDACTED
Gloucester City Council,23UE,Crematorium,HC200,Fees For Services Received,5350,Crem Fees July 2015,06/08/2015,406032,379.04,NET,Dr R W Bell,01571P
Gloucester City Council,23UE,Crematorium,HC200,Fees For Services Received,5350,Crem Fees July 2015,06/08/2015,406033,743.84,NET,Dr D Martin,00890P
Gloucester City Council,23UE,Crematorium,HC200,Fees For Services Received,5350,Crem Fees July 2015,06/08/2015,406034,1150.72,NET,Dr C M Stretton,00306P
Gloucester City Council,23UE,Development Management,PT200,Fees For Services Received,5350,Services,06/08/2015,405973,1200,NET,Albion Planning Consultants Ltd,15484A
Gloucester City Council,23UE,Dog Warden,HE400,Other Minor Supplies Services,5590,Stray Dogs 07/05/2015,06/08/2015,405720,102.5,NET,Enterprise (Aol) Ltd,06695G
Gloucester City Council,23UE,Financial Services,RT200,Subscriptions,5600,Public Admin Licences,06/08/2015,405962,4659.06,NET,Cla (The Copyright Licensing Agency Limited),15958Z
Gloucester City Council,23UE,Food Safety,HE100,Fees For Services Received,5350,Laundry July 2015,06/08/2015,405983,15,NET,Iron Maidens,02180Y
Gloucester City Council,23UE,Green Garden Waste,HI105,Basic Pay - Temporary Staff,2751,temporary staff w/e 24/07/2015,06/08/2015,405974,566.47,NET,One To One Recruitment,04752H
Gloucester City Council,23UE,Guildhall Bar And Caf�,LA210,Catering Provisions -Food,5110,Food,06/08/2015,405995,86.39,NET,Woodward Foodservice,10714F
Gloucester City Council,23UE,REDACTED,REDACTED,REDACTED,REDACTED,REDACTED,06/08/2015,REDACTED,1000,NET,REDACTED,REDACTED
Gloucester City Council,23UE,REDACTED,REDACTED,REDACTED,REDACTED,REDACTED,06/08/2015,REDACTED,260,NET,REDACTED,REDACTED
Gloucester City Council,23UE,REDACTED,REDACTED,REDACTED,REDACTED,REDACTED,06/08/2015,REDACTED,368.2,NET,REDACTED,REDACTED
Gloucester City Council,23UE,REDACTED,REDACTED,REDACTED,REDACTED,REDACTED,06/08/2015,REDACTED,489.44,NET,REDACTED,REDACTED
Gloucester City Council,23UE,REDACTED,REDACTED,REDACTED,REDACTED,REDACTED,06/08/2015,REDACTED,530,NET,REDACTED,REDACTED
Gloucester City Council,23UE,REDACTED,REDACTED,REDACTED,REDACTED,REDACTED,06/08/2015,REDACTED,4.1,NET,REDACTED,REDACTED
Gloucester City Council,23UE,Registration Of Electors,RS400,Postages,5400,Mail,06/08/2015,405980,796.77,NET,Royal Mail S.Wales & South West,35830S
Gloucester City Council,23UE,Registration Of Electors,RS400,Postages,5400,Postal Voting  Fees,06/08/2015,405957,1863,NET,Royal Mail S.Wales & South West,35830S
Gloucester City Council,23UE,Retail Market - Landlord,HM300,Cleaning / Domestic Equipment,5011,Services August 2015,06/08/2015,405646,18.93,NET,Initial Washroom Solutions,06143R
Gloucester City Council,23UE,The Arbor,HC501,Catering Provisions -Food,5110,Food,06/08/2015,405982,217.91,NET,Bidvest Foodservice (3663),55585U
Gloucester City Council,23UE,The Arbor,HC501,Catering Provisions -Food,5110,Food,06/08/2015,405984,260.12,NET,Bidvest Foodservice (3663),55585U
Gloucester City Council,23UE,The Arbor,HC501,Catering Provisions -Food,5110,Food,06/08/2015,406005,259.09,NET,Bidvest Foodservice (3663),55585U
Gloucester City Council,23UE,REDACTED,REDACTED,REDACTED,REDACTED,REDACTED,06/08/2015,REDACTED,277,NET,REDACTED,REDACTED
Gloucester City Council,23UE,REDACTED,REDACTED,REDACTED,REDACTED,REDACTED,06/08/2015,REDACTED,-23.08,NET,REDACTED,REDACTED
Gloucester City Council,23UE,Blackfriars,LA609,Security Services Fees,5351,Door Staff July 2015,07/08/2015,405978,250,NET,Nsgl Ltd (Security Acct),12539E
Gloucester City Council,23UE,Business Transformation & Tech,RT700,Computer Software Maintenance,5427,Annual Service Charge,07/08/2015,406071,4825,NET,Rol Solutions Ltd T/A Govmetric,14158C
Gloucester City Council,23UE,Business Transformation & Tech,RT700,Telephones And Fax,5410,ACCT VP75978270,07/08/2015,405085,2197.94,NET,British Telecommunications Plc,56854E
Gloucester City Council,23UE,City Centre Cctv System,PY275,Contract Payments,20,General Waste,07/08/2015,405862,180,CAP,Archer Recycling,11021G
Gloucester City Council,23UE,City Museum And Art Gallery,LM200,Publications For Sale,5064,Stickers,07/08/2015,399294,326.1,NET,Event Merchandising,15519G
Gloucester City Council,23UE,Community Safety Projects,FP500,Basic Pay - Temporary Staff,2751,temporary staff w/e 17/07/2015,07/08/2015,405656,529.25,NET,Travail Employment Ltd,49371W
Gloucester City Council,23UE,Development Management,PT200,Advertising And Publicity,5702,Advertisement 23/07/2015,07/08/2015,405867,175.3,NET,Local World Ltd,08556P
Gloucester City Council,23UE,Disabled Facilities Grants,CY013,Disabled Facility Grants,74,MDF5155 INTERIM DFG,07/08/2015,406065,1125,CAP,Tpg Disableaids,51324R
Gloucester City Council,23UE,Electrical Investigatory Works,RY142,Capital Intruder & Cctv,19,BLACKFRIARS,07/08/2015,405022,137.86,CAP,Chubb Fire & Security Ltd,54582K
Gloucester City Council,23UE,Folk Museum,LM210,Security Services Fees,5351,FOLK MUSEUM,07/08/2015,405004,206.75,NET,Chubb Fire & Security Ltd,54582K
Gloucester City Council,23UE,REDACTED,REDACTED,REDACTED,REDACTED,REDACTED,07/08/2015,REDACTED,655,NET,REDACTED,REDACTED
Gloucester City Council,23UE,Green Garden Waste,HI105,Basic Pay - Temporary Staff,2751,temporary staff w/e 29/07/2015,07/08/2015,405979,566.47,NET,One To One Recruitment,04752H
Gloucester City Council,23UE,Guildhall Events,LA200,Security Services Fees,5351,Door Staff July 2015,07/08/2015,405978,954,NET,Nsgl Ltd (Security Acct),12539E
Gloucester City Council,23UE,REDACTED,REDACTED,REDACTED,REDACTED,REDACTED,07/08/2015,REDACTED,268,NET,REDACTED,REDACTED
Gloucester City Council,23UE,Retail Market - Landlord,HM300,Operational Equipment <5000,5012,Rental of Compactor August 2015,07/08/2015,405866,280.56,NET,System Rental Uk Ltd,03239E
Gloucester City Council,23UE,Aspire Admin Charges,LC105,Contracted Services,6970,Aug-15,10/08/2015,406087,54792.25,NET,Aspire Sports & Cultural Trust,08135V
Gloucester City Council,23UE,Building Control,PT400,Basic Pay - Temporary Staff,2751,temporary staff w/e 03/05/2015,10/08/2015,405923,1606.2,NET,The Oyster Partnership Limited,14900T
Gloucester City Council,23UE,Cctv Revenue Budget,FP501,Security Equipment Serv/Repair,3038,CCTV Moves for PC Matt,10/08/2015,405958,600,NET,Southern Electric Contracting Ltd,08337R
Gloucester City Council,23UE,Cemeteries,HC300,Clothing,5200,Safety Boots,10/08/2015,405532,45,NET,Safpro Industrial Supply Co,39190W
Gloucester City Council,23UE,Cemeteries,HC300,Other Minor Supplies Services,5590,Range Paving Honey,10/08/2015,404562,922.5,NET,Buildbase Ltd,03692D
Gloucester City Council,23UE,City Museum And Art Gallery,LM200,Exhibits And Collections,5038,PRINTING,10/08/2015,406086,1820,NET,Alpha Colour Printers Ltd,00945B
Gloucester City Council,23UE,Civica Admin Charges,RT105,Postages,5400,Post 13/07 - 24/07 2015,10/08/2015,405976,1395.76,NET,Royal Mail S.Wales & South West,35830S
Gloucester City Council,23UE,Civica Contract Revs & Bens,RT250,Contracted Services,6970,Revenues & Benefits Services Sept 2015,10/08/2015,405864,137322.7,NET,Civica Uk Ltd,10841X
Gloucester City Council,23UE,Civica It Contract,RT270,Contracted Services,6970,IT Services September 2015,10/08/2015,405865,47916.67,NET,Civica Uk Ltd,10841X
Gloucester City Council,23UE,Client Revs & Bens Contract,RT240,Bailiffs Fees,5368,VAT ONLY INVOICE,10/08/2015,406088,0,NET,Bristow & Sutor,05450M
Gloucester City Council,23UE,Client Revs & Bens Contract,RT240,Bailiffs Fees,5368,VAT ONLY INVOICE,10/08/2015,406089,0,NET,Bristow & Sutor,05450M
Gloucester City Council,23UE,Community Safety Projects,FP500,Basic Pay - Temporary Staff,2751,Temporary staff w/e 24/07/2015,10/08/2015,405977,441.36,NET,Travail Employment Ltd,49371W
Gloucester City Council,23UE,Countryside Unit,LP201,Maint Of Grounds - General,3030,ROBINSWOOD HILL CAR PARK,10/08/2015,406085,350,NET,Roadmark Ltd,37743T
Gloucester City Council,23UE,Crematorium,HC200,Cleaning Materials,3600,Toilet Rolls,10/08/2015,405495,66,NET,Safpro Industrial Supply Co,39190W
Gloucester City Council,23UE,Crematorium,HC200,Repair/Maint Of Fixed Plant,3006,Cleaning Materials,10/08/2015,405509,62.7,NET,Safpro Industrial Supply Co,39190W
Gloucester City Council,23UE,Gates Streets,GY014,Contract Payments,20,Refurb of 14 Bins,10/08/2015,405861,2475,CAP,Environmental Care Advertising Ltd,54093G
Gloucester City Council,23UE,Grants To Voluntary Sector,FG100,Sla'S,7100B,Advice centres fund 1 of 4,10/08/2015,406114,18953,NET,Gloucester Law Centre,18157R
Gloucester City Council,23UE,REDACTED,REDACTED,REDACTED,REDACTED,REDACTED,10/08/2015,REDACTED,383,NET,REDACTED,REDACTED
Gloucester City Council,23UE,Grants To Voluntary Sector,FG100,Sla'S,7100B,SLA for advice centres 1 of 4,10/08/2015,406112,15504,NET,Gloucester & District Citizens Advice Bureau,07709Y
Gloucester City Council,23UE,REDACTED,REDACTED,REDACTED,REDACTED,REDACTED,10/08/2015,REDACTED,714,NET,REDACTED,REDACTED
Gloucester City Council,23UE,REDACTED,REDACTED,REDACTED,REDACTED,REDACTED,10/08/2015,REDACTED,242.25,NET,REDACTED,REDACTED
Gloucester City Council,23UE,REDACTED,REDACTED,REDACTED,REDACTED,REDACTED,10/08/2015,REDACTED,119,NET,REDACTED,REDACTED
Gloucester City Council,23UE,REDACTED,REDACTED,REDACTED,REDACTED,REDACTED,10/08/2015,REDACTED,396.1,NET,REDACTED,REDACTED
Gloucester City Council,23UE,REDACTED,REDACTED,REDACTED,REDACTED,REDACTED,10/08/2015,REDACTED,246.5,NET,REDACTED,REDACTED
Gloucester City Council,23UE,REDACTED,REDACTED,REDACTED,REDACTED,REDACTED,10/08/2015,REDACTED,190.4,NET,REDACTED,REDACTED
Gloucester City Council,23UE,Head Of Regeneration & Eco Dev,GO102,Conference/Meeting Expenses,5510,conference fees,10/08/2015,405527,350,NET,Bcsc,15785G
Gloucester City Council,23UE,Head Of Regeneration & Eco Dev,GO102,Consultants Fees,5349,Professional Fees,10/08/2015,405648,35000,NET,Lda Design Consulting Ltd,03500T
Gloucester City Council,23UE,Homelessness,CH120,Rent In Advance,5516,REDACTED,10/08/2015,406105,489.44,NET,Barton & Tredworth Developments Ltd,58165T
Gloucester City Council,23UE,REDACTED,REDACTED,REDACTED,REDACTED,REDACTED,10/08/2015,REDACTED,368.2,NET,REDACTED,REDACTED
Gloucester City Council,23UE,Homelessness Prevention,CH122,Fees For Services Received,5350,REDACTED,10/08/2015,406105,530,NET,Barton & Tredworth Developments Ltd,58165T
Gloucester City Council,23UE,National Express,LT105,Materials For Sale,5080,Jul-15,10/08/2015,405981,12398.85,NET,National Express Ltd,31455K
Gloucester City Council,23UE,National Express,LT105,Sale Of Goods And Services,9230,Jul-15,10/08/2015,405981,-1199.14,NET,National Express Ltd,31455K
Gloucester City Council,23UE,Treasury Management,VR110,Brokerage Fees,5951,BROKERS FEES,10/08/2015,406098,1483.56,NET,Martin Brokers (Uk) Plc,51416J
Gloucester City Council,23UE,Alney Island,PY128,Contract Payments,20,PANELS,11/08/2015,406156,2344.69,CAP,Farm And Stable Supplies Llp,15786E
Gloucester City Council,23UE,Asset Management,RS300,Basic Pay - Temporary Staff,2751,Jul-15,11/08/2015,406145,7200,NET,Ardley Associates,09369F
Gloucester City Council,23UE,Asset Management,RS300,General Repair/Maint Buildings,3000,Kings Walk Bastion works,11/08/2015,404863,2515,NET,J M Grail (General Engineering) Ltd,03204A
Gloucester City Council,23UE,Barbican Car Park,RB543,Consultants Fees,5349,23 WESTGATE ST,11/08/2015,406143,1500,NET,Alder King,02367D
Gloucester City Council,23UE,Cemeteries,HC300,Operational Materials,5070,SERVICE,11/08/2015,406146,66.5,NET,Garden Machinery Gloucester,55641K
Gloucester City Council,23UE,Cemeteries,HC300,Tyres,4014,CN57 DZA,11/08/2015,406153,111.02,NET,A T S Euromaster Ltd,01860B
Gloucester City Council,23UE,Cems/Crems Admin,HC100,Security Services Fees,5351,CASH COLLECTIONS,11/08/2015,406158,14.11,NET,G4s Cash Solutions (Uk) Ltd,04290V
Gloucester City Council,23UE,Client Revs & Bens Contract,RT240,Bailiffs Fees,5368,VAT due on fees,11/08/2015,405878,0,NET,Bristow & Sutor,05450M
Gloucester City Council,23UE,Client Revs & Bens Contract,RT240,Bailiffs Fees,5368,VAT due on fees,11/08/2015,405879,0,NET,Bristow & Sutor,05450M
Gloucester City Council,23UE,Client Revs & Bens Contract,RT240,Bailiffs Fees,5368,VAT ONLY INVOICE,11/08/2015,406147,0,NET,Phoenix Commercial Collections Ltd,13435J
Gloucester City Council,23UE,Client Revs & Bens Contract,RT240,Bailiffs Fees,5368,VAT ONLY INVOICE,11/08/2015,406148,0,NET,Phoenix Commercial Collections Ltd,13435J
Gloucester City Council,23UE,Docks Complex - Services,RB100,Catering Provisions -Food,5110,FOOD,11/08/2015,405017,25.56,NET,Taynton Farm Foods,09653F
Gloucester City Council,23UE,Docks Complex - Services,RB100,Security Services Fees,5351,CASH COLLECTIONS,11/08/2015,406158,3.53,NET,G4s Cash Solutions (Uk) Ltd,04290V
Gloucester City Council,23UE,Docks Complex - Services,RB100,Service Charges,3020,Aug-Nov15 rental,11/08/2015,405093,422.24,NET,Wessex Products (Leasing) Ltd,03684C
Gloucester City Council,23UE,Electrical Investigatory Works,RY142,Capital Fire Alarms,25,BATTERIES,11/08/2015,406150,112.6,CAP,Cpc,52980M
Gloucester City Council,23UE,Environmental Planning,LM340,Exhibits And Collections,5038,Geophysical Survey,11/08/2015,405890,207.6,NET,A J Roberts T/A Archeoscan,14562R
Gloucester City Council,23UE,Environmental Planning,LM340,Repair/Maint Of Monuments,3004,Kings Walk Bastion works,11/08/2015,404863,1000,NET,J M Grail (General Engineering) Ltd,03204A
Gloucester City Council,23UE,Gloucester Guildhall,LA100,General Repair/Maint Buildings,3000,BATTERIES,11/08/2015,406149,93.95,NET,Cpc,52980M
Gloucester City Council,23UE,Gloucester Guildhall,LA100,Hire Of Equipment,5020,Fuel Charge,11/08/2015,405894,155,NET,Brandon Hire Plc*,51183J
Gloucester City Council,23UE,Gloucester Guildhall,LA100,Hire Of Equipment,5020,Generator,11/08/2015,405895,20,NET,Brandon Hire Plc*,51183J
Gloucester City Council,23UE,Guildhall Events,LA200,Artists Fees,5355,Space Performance,11/08/2015,406070,1000,NET,Selective Mgmt T/A The Sounds History Saved,15923V
Gloucester City Council,23UE,Hempsted Market/Car Boot,HM234,Maint Of Grounds - General,3030,HEMPSTED MEADOWS,11/08/2015,403718,980,NET,J M Grail (General Engineering) Ltd,03204A
Gloucester City Council,23UE,Hempsted Market/Car Boot,HM234,Maint Of Grounds - General,3030,HEMPSTED MEADOWS,11/08/2015,403719,2181.55,NET,J M Grail (General Engineering) Ltd,03204A
Gloucester City Council,23UE,Homelessness,CH120,Fees For Services Received,5350,Storage July 2015,11/08/2015,405897,641.25,NET,Advanced Removals & Storage Ltd,57142R
Gloucester City Council,23UE,Homelessness,CH120,General Repair/Maint Buildings,3000,Full Mesh Chair,11/08/2015,405877,289,NET,Bestbuy Office Chairs,15521W
Gloucester City Council,23UE,Kings Quarter,RY146,Contract Payments,20,taxi rank,11/08/2015,398166,335.32,CAP,Ken Pink Plant Hire Ltd,56884V
Gloucester City Council,23UE,Rehousing,CH111,Fees For Services Received,5350,Medical report,11/08/2015,405875,20.5,NET,Dr R Watkins & Partners,59237H
Gloucester City Council,23UE,Rehousing,CH111,Fees For Services Received,5350,Medical report,11/08/2015,405876,20.5,NET,Saintbridge Surgery,58374F
Gloucester City Council,23UE,Retail Market - Landlord,HM300,Operational Equipment <5000,5012,Floor Cleaner,11/08/2015,405881,2350,NET,Green And White Ltd,15784J
Gloucester City Council,23UE,Retail Market - Landlord,HM300,Trade Refuse Collection,3630,Food Waste,11/08/2015,405886,150,NET,B & S Pointon Ltd,06253G
Gloucester City Council,23UE,The Arbor,HC501,Catering Provisions -Liquor,5111,Drinks,11/08/2015,405891,314.62,NET,Cellar Supplies Cheltenham Ltd,01563L
Gloucester City Council,23UE,Tic Trading,LT110,Materials For Sale,5080,25 2016 Calendars,11/08/2015,405892,37.5,NET,Gloucester Civic Trust(St Michaels Tower),07484Z
Gloucester City Council,23UE,Tic Trading,LT110,Materials For Sale,5080,Various Items,11/08/2015,405893,906.2,NET,Norfolk China Ltd,12863S
Gloucester City Council,23UE,Tourism Marketing,LT100,Printing,5300,Gloucester Green Guides,11/08/2015,405889,292,NET,Severnprint Ltd,49030C
Gloucester City Council,23UE,Accelerator 1 Econ Challenge F,FP302,Other Minor Supplies Services,5590,BUSINESS SUPPORT,12/08/2015,406164,160,NET,Gloucestershire Enterprise Ltd,18643A
Gloucester City Council,23UE,Accelerator 1 Econ Challenge F,FP302,Other Minor Supplies Services,5590,BUSINESS SUPPORT,12/08/2015,406166,480,NET,Gloucestershire Enterprise Ltd,18643A
Gloucester City Council,23UE,Asset Management,RS300,Basic Pay - Temporary Staff,2751,Jul-15,12/08/2015,406178,5995.85,NET,Ecostep Ltd,15511Z
Gloucester City Council,23UE,Asset Management,RS300,Subscriptions,5600,ESTATES GAZETTE,12/08/2015,406167,260,NET,Estates Gazette,05367Z
Gloucester City Council,23UE,Asset Management,RS300,Subscriptions,5600,planning network,12/08/2015,406185,925,NET,Cipfa Business Limited,09260F
Gloucester City Council,23UE,Barbican Car Park,RB543,Maint Of Grounds - General,3030,barbican car park,12/08/2015,406193,75,NET,Mpl Wrought Iron Llp,03907P
Gloucester City Council,23UE,Blackfriars,LA609,Advertising And Publicity,5702,Hires Brochure,12/08/2015,405949,140,NET,Jigsaw Design & Print Limited,15973D
Gloucester City Council,23UE,Blackfriars,LA609,Fees For Services Received,5350,BLACKFRIARS,12/08/2015,406182,100,NET,Gloucester Cleaning Service,17896B
Gloucester City Council,23UE,Blackfriars,LA609,Hire Of Equipment,5020,Projection Screens,12/08/2015,405905,335,NET,Unique Sound Systems,59571S
Gloucester City Council,23UE,REDACTED,REDACTED,REDACTED,REDACTED,REDACTED,12/08/2015,REDACTED,35,NET,REDACTED,REDACTED
Gloucester City Council,23UE,Blackfriars,LA609,Printing,5300,Hires Booklet,12/08/2015,405947,113.25,NET,Jigsaw Design & Print Limited,15973D
Gloucester City Council,23UE,Building Control,PT400,Subscriptions,5600,Annual Subscription 15/16,12/08/2015,405913,300,NET,Labc West Of England Region,55597L
Gloucester City Council,23UE,REDACTED,REDACTED,REDACTED,REDACTED,REDACTED,12/08/2015,REDACTED,80,NET,REDACTED,REDACTED
Gloucester City Council,23UE,Cemeteries,HC300,Clothing,5200,Boots & Earmuffs,12/08/2015,405904,75.42,NET,Safpro Industrial Supply Co,39190W
Gloucester City Council,23UE,City Centre Cctv System,PY275,Contract Payments,20,new CCTV milestone 1,12/08/2015,406236,18829,CAP,Bt Redcare,04692U
Gloucester City Council,23UE,City Museum And Art Gallery,LM200,Exhibits And Collections,5038,PANELS,12/08/2015,406171,1720,NET,Alpha Colour Printers Ltd,00945B
Gloucester City Council,23UE,City Museum And Art Gallery,LM200,Maint Agreements - Fixed Plant,3011,Quarterly Rental Maintenance,12/08/2015,406001,46.31,NET,Secom Plc,51471A
Gloucester City Council,23UE,City Museum And Art Gallery,LM200,Maint Agreements - Fixed Plant,3011,Quarterly Rental Maintenance,12/08/2015,406002,311.35,NET,Secom Plc,51471A
Gloucester City Council,23UE,City Museum And Art Gallery,LM200,Operational Equipment <5000,5012,Embossing machines,12/08/2015,405939,135,NET,Marketing Gloucester Ltd,08925E
Gloucester City Council,23UE,City Museum And Art Gallery,LM200,Printing,5300,Hires Booklet,12/08/2015,405947,56.63,NET,Jigsaw Design & Print Limited,15973D
Gloucester City Council,23UE,City Museum And Art Gallery,LM200,Printing,5300,Hires Brochure,12/08/2015,405949,70,NET,Jigsaw Design & Print Limited,15973D
Gloucester City Council,23UE,Client Revs & Bens Contract,RT240,Fees For Services Received,5350,Warrants - Arrest & Detention,12/08/2015,405943,49.5,NET,Assevarate Ltd,11749A
Gloucester City Council,23UE,Client Revs & Bens Contract,RT240,Fees For Services Received,5350,NNDR Changes,12/08/2015,405914,12281,NET,Civica Uk Ltd,10841X
Gloucester City Council,23UE,Contact Centre,RB300,Other Minor Supplies Services,5590,cleaning reception carpet & chairs,12/08/2015,406237,175,NET,Clean Able,15757M
Gloucester City Council,23UE,Contact Centre,RB300,Postages,5400,ACCT 0074842000,12/08/2015,406097,71.29,NET,Royal Mail S.Wales & South West,35830S
Gloucester City Council,23UE,Contact Centre,RB300,Postages,5400,ACCT 0252446000,12/08/2015,406155,1176.33,NET,Royal Mail S.Wales & South West,35830S
Gloucester City Council,23UE,Council Streetcare Team,HI101,Maint Of Grounds - General,3030,Various Items,12/08/2015,402809,67.89,NET,Broxap Ltd,01141U
Gloucester City Council,23UE,Countryside Unit,LP201,General Repair/Maint Buildings,3000,Various Items,12/08/2015,405909,24.65,NET,Commercial Mower Supplies,06799D
Gloucester City Council,23UE,Countryside Unit,LP201,Maint Of Grounds - General,3030,Various Items,12/08/2015,405909,280.5,NET,Commercial Mower Supplies,06799D
Gloucester City Council,23UE,Crematorium,HC200,Equipment For Sale,5050,Kenilworth Bench,12/08/2015,405901,379.98,NET,Codec Facilities Ltd,14338Y
Gloucester City Council,23UE,Development Management,PT200,Advertising And Publicity,5702,ADVERT 06/08/15,12/08/2015,406180,175.3,NET,Local World Ltd,08556P
Gloucester City Council,23UE,Development Management,PT200,Microfilming / Cd-Rom Storage,5330,Jul-15,12/08/2015,406174,24.5,NET,Transmedia Technology Ltd,08635T
Gloucester City Council,23UE,Docks Complex - Services,RB100,Lift Maintenance,3051,Works 13/07/2015,12/08/2015,405693,388.54,NET,Pickerings Europe Ltd,58816U
Gloucester City Council,23UE,Docks Complex - Services,RB100,Operational Equipment <5000,5012,Lease Rental Aug - Nov 2015,12/08/2015,405371,162.57,NET,Siemens Financial Services Ltd,08349H
Gloucester City Council,23UE,Docks Complex - Services,RB100,Recycling,3631,June 2015 recycling,12/08/2015,404719,226,NET,Printwaste Recycling,57114W
Gloucester City Council,23UE,Economic Development,FP300,Other Minor Supplies Services,5590,TRAINING 31/07/15,12/08/2015,406165,1050,NET,Gloucestershire Enterprise Ltd,18643A
Gloucester City Council,23UE,REDACTED,REDACTED,REDACTED,REDACTED,REDACTED,12/08/2015,REDACTED,2500,NET,REDACTED,REDACTED
Gloucester City Council,23UE,Environmental Planning,LM340,Operational Materials,5070,Go Wild Event - Robinswood Hill,12/08/2015,405940,205,NET,Gloucestershire Wildlife Trust,15576A
Gloucester City Council,23UE,Folk Museum,LM210,Operational Equipment <5000,5012,Embossing machines,12/08/2015,405939,135,NET,Marketing Gloucester Ltd,08925E
Gloucester City Council,23UE,Folk Museum,LM210,Printing,5300,Hires Booklet,12/08/2015,405947,56.62,NET,Jigsaw Design & Print Limited,15973D
Gloucester City Council,23UE,Folk Museum,LM210,Printing,5300,Hires Brochure,12/08/2015,405949,70,NET,Jigsaw Design & Print Limited,15973D
Gloucester City Council,23UE,General Drainage Works,PY241,Contract Payments,20,ST PETERS SCHOOL,12/08/2015,406159,605.27,CAP,Sel Environmental Ltd,15006U
Gloucester City Council,23UE,REDACTED,REDACTED,REDACTED,REDACTED,REDACTED,12/08/2015,REDACTED,266,CAP,REDACTED,REDACTED
Gloucester City Council,23UE,Grants To Voluntary Sector,FG100,Abcd Grants,7100A,ROOM HIRE 15/06/15,12/08/2015,406249,46,NET,Gavca,06129J
Gloucester City Council,23UE,Grants To Voluntary Sector,FG100,Abcd Grants,7100A,Workshops,12/08/2015,405922,1950,NET,Gpl Training Limited,15983A
Gloucester City Council,23UE,Grants To Voluntary Sector,FG100,Members Allocation Fund,7100F,MEMBERS FUND,12/08/2015,406235,330,NET,Podsmead Big Local,14952X
Gloucester City Council,23UE,Guildhall Bar And Caf�,LA210,Catering Provisions -Food,5110,Icecream,12/08/2015,405930,54,NET,Winstones Ice Cream Ltd,56347D
Gloucester City Council,23UE,Guildhall Bar And Caf�,LA210,Catering Provisions -Food,5110,Icecream,12/08/2015,405931,54,NET,Winstones Ice Cream Ltd,56347D
Gloucester City Council,23UE,REDACTED,REDACTED,REDACTED,REDACTED,REDACTED,12/08/2015,REDACTED,600,NET,REDACTED,REDACTED
Gloucester City Council,23UE,REDACTED,REDACTED,REDACTED,REDACTED,REDACTED,12/08/2015,REDACTED,540,NET,REDACTED,REDACTED
Gloucester City Council,23UE,REDACTED,REDACTED,REDACTED,REDACTED,REDACTED,12/08/2015,REDACTED,150,NET,REDACTED,REDACTED
Gloucester City Council,23UE,REDACTED,REDACTED,REDACTED,REDACTED,REDACTED,12/08/2015,REDACTED,280,NET,REDACTED,REDACTED
Gloucester City Council,23UE,Guildhall Lettings,LA400,Advertising And Publicity,5702,Hires Brochure,12/08/2015,405949,280,NET,Jigsaw Design & Print Limited,15973D
Gloucester City Council,23UE,Guildhall Lettings,LA400,Printing,5300,Hires Booklet,12/08/2015,405947,226.5,NET,Jigsaw Design & Print Limited,15973D
Gloucester City Council,23UE,REDACTED,REDACTED,REDACTED,REDACTED,REDACTED,12/08/2015,REDACTED,465.5,CAP,REDACTED,REDACTED
Gloucester City Council,23UE,REDACTED,REDACTED,REDACTED,REDACTED,REDACTED,12/08/2015,REDACTED,489.44,NET,REDACTED,REDACTED
Gloucester City Council,23UE,REDACTED,REDACTED,REDACTED,REDACTED,REDACTED,12/08/2015,REDACTED,530,NET,REDACTED,REDACTED
Gloucester City Council,23UE,Innsworth Lane Sports Pitches,LY079,Contract Payments,20,innsworth sports pitch,12/08/2015,406200,1100,CAP,Gdb Groundcare,15552J
Gloucester City Council,23UE,Investment Property,RB500,General Repair/Maint Buildings,3000,Engineer 22/07/2015,12/08/2015,405959,112.5,NET,Pickerings Europe Ltd,58816U
Gloucester City Council,23UE,Investment Property,RB500,General Repair/Maint Buildings,3000,Inspection Aug - Oct 2015,12/08/2015,405628,106.25,NET,Pickerings Europe Ltd,58816U
Gloucester City Council,23UE,Investment Property,RB500,General Repair/Maint Buildings,3000,MTC Contract June 2015,12/08/2015,405996,24521.03,NET,Rf Gardiner Limited,12299B
Gloucester City Council,23UE,Investment Property,RB500,Lift Maintenance,3051,BLACKFRIARS PRIORY,12/08/2015,405321,333.8,NET,Pickerings Europe Ltd,58816U
Gloucester City Council,23UE,Investment Property,RB500,Lift Maintenance,3051,Engineer 10/06/2015,12/08/2015,404202,75,NET,Pickerings Europe Ltd,58816U
Gloucester City Council,23UE,Investment Property,RB500,Lift Maintenance,3051,Works 13/07/2015,12/08/2015,405694,481.56,NET,Pickerings Europe Ltd,58816U
Gloucester City Council,23UE,Kings Quarter,RY146,Contract Payments,20,kings square,12/08/2015,406194,55710.62,CAP,Talus Construction Ltd,10401G
Gloucester City Council,23UE,Kings Quarter,RY146,Contract Payments,20,Pre Planning Application Cost,12/08/2015,405902,2000,CAP,Sweett (Uk) Ltd,14770R
Gloucester City Council,23UE,Licences,HE510,Gating Orders,5541,Gate Panels and Locks,12/08/2015,405680,1378.17,NET,Gloucester Street Forge,11069C
Gloucester City Council,23UE,Organisational Health,RC160,Fees For Services Received,5350,OCC HEALTH,12/08/2015,406172,337.92,NET,Industrial Medical & Safety Services Ltd,10668L
Gloucester City Council,23UE,Registration Of Electors,RS400,Printing,5300,July IER Mailings,12/08/2015,405896,249.57,NET,Alpha Response Print & Mail Ltd,03029U
Gloucester City Council,23UE,Registration Of Electors,RS400,Publications,5060,PUBLICATION,12/08/2015,406188,185,NET,Thomson Reuters,43110M
Gloucester City Council,23UE,Retail Market - Landlord,HM300,Advertising And Publicity,5702,Advertisement,12/08/2015,405926,300,NET,City Pages Ltd (Whatson),15978T
Gloucester City Council,23UE,Rugby World Cup,LT450,Fees For Services Received,5350,BANNER,12/08/2015,406170,16488,NET,Bay Media Ltd,14953V
Gloucester City Council,23UE,Rugby World Cup,LT450,Fees For Services Received,5350,Printed Graphic Panel - Rugby,12/08/2015,405946,178,NET,Squirty Ink,13834P
Gloucester City Council,23UE,Rugby World Cup,LT450,Fees For Services Received,5350,TESTING,12/08/2015,406152,4291.26,NET,Kiwa Ltd,14951Z
Gloucester City Council,23UE,Shopmobility,PE200,Fees For Services Received,5350,ADVERT 06/08/15,12/08/2015,406179,87.65,NET,Local World Ltd,08556P
Gloucester City Council,23UE,Targeted Historic Grants,GY008,Contract Payments,20,Works on site,12/08/2015,405953,3185,CAP,King Builders (Gloucester) Ltd,25810S
Gloucester City Council,23UE,REDACTED,REDACTED,REDACTED,REDACTED,REDACTED,12/08/2015,REDACTED,10558.8,CAP,REDACTED,REDACTED
Gloucester City Council,23UE,The Arbor,HC501,Catering Provisions -Food,5110,Food w/e 19/07/2015,12/08/2015,405492,75.83,NET,Janes Pantry,24500W
Gloucester City Council,23UE,Tourism Marketing,LT100,Cleaning Materials,3600,Cleaning Materials,12/08/2015,405938,28.21,NET,Robert Hall Business Equipment Ltd,19925B
Gloucester City Council,23UE,Tree Planting Grant Funded,LY150,Contract Payments,20,115 Curlew Road - Tree,12/08/2015,405921,1030,CAP,Jpu Services Ltd,11056K
Gloucester City Council,23UE,Vehicles,RS140,Fuel,4012,Fuel,12/08/2015,405963,369.08,NET,Allstar Business Solutions Ltd (Arval),06594A
Gloucester City Council,23UE,Aspire Admin Charges,LC105,Security Services Fees,5351,Services September 2015,13/08/2015,406399,181.28,NET,G4s Cash Solutions (Uk) Ltd,04290V
Gloucester City Council,23UE,Asset Management,RS300,Advertising And Publicity,5702,Advertisement June 2015,13/08/2015,406385,295,NET,Local World Ltd,08556P
Gloucester City Council,23UE,Blackfriars,LA609,Sale Of Goods And Services,9230,Round Tables,13/08/2015,406360,49,NET,Valley Furniture Hire Ltd,08324P
Gloucester City Council,23UE,Building Control,PT400,Fees For Services Received,5350,Destruction of Scanned Documents,13/08/2015,406371,220,NET,Transmedia Technology Ltd,08635T
Gloucester City Council,23UE,Business Planning & Performanc,RL500,Fees For Services Received,5350,Hospitality 24/06/2015,13/08/2015,406333,882,NET,Catercater Ltd,08620G
Gloucester City Council,23UE,Business Transformation & Tech,RT700,Fees For Services Received,5350,Day Delegate Rate,13/08/2015,406373,1048.25,NET,Gloucester Rugby Football Club,49396D
Gloucester City Council,23UE,Cemeteries,HC300,Fertilisers,3029,Remove dead branches on Cedar Tree,13/08/2015,406361,780,NET,Jpu Services Ltd,11056K
Gloucester City Council,23UE,Cems/Crems Admin,HC100,Security Services Fees,5351,Services September 2015,13/08/2015,406399,103.33,NET,G4s Cash Solutions (Uk) Ltd,04290V
Gloucester City Council,23UE,City Museum And Art Gallery,LM200,Advertising And Publicity,5702,Fee for Membership,13/08/2015,406374,53.75,NET,Tourist Net Uk Ltd,07157U
Gloucester City Council,23UE,City Museum And Art Gallery,LM200,Events,5952,Rooms,13/08/2015,406379,470.83,NET,Edward Hotel,00141D
Gloucester City Council,23UE,City Museum And Art Gallery,LM200,Exhibits And Collections,5038,Junior Backpack - WOW Rugby,13/08/2015,406381,135,NET,The Print Room,15674G
Gloucester City Council,23UE,City Museum And Art Gallery,LM200,Operational Equipment <5000,5012,"5000 Cards, Signiture Panels",13/08/2015,406345,850,NET,Pcd Plastic Cards Direct Ltd,15797Z
Gloucester City Council,23UE,City Museum And Art Gallery,LM200,Security Services Fees,5351,Services September 2015,13/08/2015,406399,90.64,NET,G4s Cash Solutions (Uk) Ltd,04290V
Gloucester City Council,23UE,Civil Parking Enforcement,PT741,Computer Software Maintenance,5427,Sep-14,13/08/2015,406369,1314.86,NET,Chipside Ltd,06535T
Gloucester City Council,23UE,Client Revs & Bens Contract,RT240,Bailiffs Fees,5368,VAT due on fees,13/08/2015,405919,0,NET,Bristow & Sutor,05450M
Gloucester City Council,23UE,Client Revs & Bens Contract,RT240,Fees For Services Received,5350,Enclosures for Business Rates 2015/16,13/08/2015,406324,2760,NET,Civica Uk Ltd,10841X
Gloucester City Council,23UE,Client Revs & Bens Contract,RT240,Fees For Services Received,5350,Grant Funding 2015,13/08/2015,406322,6500,NET,Civica Uk Ltd,10841X
Gloucester City Council,23UE,Contact Centre,RB300,Basic Pay - Temporary Staff,2751,TEMPORARY STAFF W/E 02/08/15,13/08/2015,406246,420,NET,Morgan Hunt Uk Ltd,04451S
Gloucester City Council,23UE,Contact Centre,RB300,Basic Pay - Temporary Staff,2751,TEMPORARY STAFF W/E 19/07/15,13/08/2015,406248,420,NET,Morgan Hunt Uk Ltd,04451S
Gloucester City Council,23UE,Contact Centre,RB300,Basic Pay - Temporary Staff,2751,TEMPORARY STAFF W/E 26/07/15,13/08/2015,406247,555,NET,Morgan Hunt Uk Ltd,04451S
Gloucester City Council,23UE,Contact Centre,RB300,Basic Pay - Temporary Staff,2751,STAFF W/E 08/08/15,13/08/2015,406253,727.32,NET,One To One Recruitment,04752H
Gloucester City Council,23UE,Contact Centre,RB300,Basic Pay - Temporary Staff,2751,STAFF W/E 08/08/15,13/08/2015,406254,566.47,NET,One To One Recruitment,04752H
Gloucester City Council,23UE,Contact Centre,RB300,Fees For Services Received,5350,Telephone Interpreting,13/08/2015,406330,4.2,NET,Prime Production Ltd,06262F
Gloucester City Council,23UE,Contact Centre,RB300,Other Minor Supplies Services,5590,Jul-15,13/08/2015,406169,142.56,NET,Office Response,09439K
Gloucester City Council,23UE,Contact Centre,RB300,Publications,5060,Citizens July 2015,13/08/2015,406329,150,NET,Ymk Supermarket,55281U
Gloucester City Council,23UE,Contact Centre,RB300,Stationery,5302,Stationery,13/08/2015,406395,42.42,NET,Lyreco Uk Ltd,11746G
Gloucester City Council,23UE,Contact Centre,RB300,Stationery,5302,Stationery,13/08/2015,406396,1,NET,Lyreco Uk Ltd,11746G
Gloucester City Council,23UE,Corporate Reporting /Financing,RC504,Fees For Services Received,5350,Childcare Vouchers August 2015,13/08/2015,406334,21.86,NET,Wider Plan Ltd ( Formerly Kiddivouchers),07893B
Gloucester City Council,23UE,Countryside Unit,LP201,Maint Of Grounds - General,3030,"Hawthorn Seat, Carved",13/08/2015,406326,561,NET,Streetmaster Products,00534D
Gloucester City Council,23UE,Countryside Unit,LP201,Major R And M - Vehicles,4010,Various Items,13/08/2015,406350,80.95,NET,A C Belting Ltd,00250X
Gloucester City Council,23UE,Countryside Unit,LP201,Routine R And M - Vehicles,4011,hose,13/08/2015,406184,57.37,NET,Pirtek,48699R
Gloucester City Council,23UE,Development Management,PT200,Advertising And Publicity,5702,Planning Resource,13/08/2015,406367,1325,NET,Haymarket Media Group Ltd,56642Y
Gloucester City Council,23UE,Docks Complex - Services,RB100,Cleaning Materials,3600,Cleaning Materials,13/08/2015,405670,154.03,NET,Core Hygiene Ltd,03885P
Gloucester City Council,23UE,Docks Complex - Services,RB100,Cleaning Materials,3600,Cleaning Materials,13/08/2015,405900,99.01,NET,Core Hygiene Ltd,03885P
Gloucester City Council,23UE,Docks Complex - Services,RB100,Security Services Fees,5351,Services September 2015,13/08/2015,406399,270.81,NET,G4s Cash Solutions (Uk) Ltd,04290V
Gloucester City Council,23UE,Employers Pension Contribs,ZR355,Pension Contribs Incl Backf,2901,LGPS PAYMENTS,13/08/2015,406199,26702.84,NET,Gloucestershire County Council,10614L
Gloucester City Council,23UE,Folk Museum,LM210,Advertising And Publicity,5702,Fee for Membership,13/08/2015,406374,53.75,NET,Tourist Net Uk Ltd,07157U
Gloucester City Council,23UE,Folk Museum,LM210,Operational Equipment <5000,5012,"5000 Cards, Sig Strip",13/08/2015,406340,850,NET,Pcd Plastic Cards Direct Ltd,15797Z
Gloucester City Council,23UE,Folk Museum,LM210,Security Services Fees,5351,Services September 2015,13/08/2015,406399,90.64,NET,G4s Cash Solutions (Uk) Ltd,04290V
Gloucester City Council,23UE,General Drainage Works,PY241,Contract Payments,20,1 Dinglewell - Rear Door,13/08/2015,406359,556.51,CAP,Whitehouse Construction Ltd,15498N
Gloucester City Council,23UE,General Drainage Works,PY241,Contract Payments,20,St Peters School,13/08/2015,406368,2332,CAP,Rj Contracting (Environmental) Ltd,07429H
Gloucester City Council,23UE,Gloucester Guildhall,LA100,Security Services Fees,5351,Services September 2015,13/08/2015,406399,90.64,NET,G4s Cash Solutions (Uk) Ltd,04290V
Gloucester City Council,23UE,Grants To Voluntary Sector,FG100,Members Allocation Fund,7100F,Various Items,13/08/2015,406328,660,NET,Wybone Limited,13540L
Gloucester City Council,23UE,Guildhall Bar And Caf�,LA210,Catering Provisions -Food,5110,Food w/e 02/08/2015,13/08/2015,406343,26.8,NET,Janes Pantry,24500W
Gloucester City Council,23UE,Guildhall Bar And Caf�,LA210,Catering Provisions -Liquor,5111,Product Rental,13/08/2015,405906,53.19,NET,Boc Ltd,59172L
Gloucester City Council,23UE,Guildhall Cinema,LA202,Fees For Services Received,5350,Aug-15,13/08/2015,406186,219.59,NET,Nft Logistics Ltd,13505N
Gloucester City Council,23UE,REDACTED,REDACTED,REDACTED,REDACTED,REDACTED,13/08/2015,REDACTED,527.09,NET,REDACTED,REDACTED
Gloucester City Council,23UE,REDACTED,REDACTED,REDACTED,REDACTED,REDACTED,13/08/2015,REDACTED,100,NET,REDACTED,REDACTED
Gloucester City Council,23UE,REDACTED,REDACTED,REDACTED,REDACTED,REDACTED,13/08/2015,REDACTED,100,NET,REDACTED,REDACTED
Gloucester City Council,23UE,REDACTED,REDACTED,REDACTED,REDACTED,REDACTED,13/08/2015,REDACTED,110.25,NET,REDACTED,REDACTED
Gloucester City Council,23UE,Guildhall Events,LA200,Advertising And Publicity,5702,Distribution of Gloucester Guildhall Boo,13/08/2015,406370,382.5,NET,Glide Media,58829J
Gloucester City Council,23UE,Guildhall Events,LA200,Fees For Services Received,5350,Months News,13/08/2015,406383,35.95,NET,W H Smith Ltd,40860M
Gloucester City Council,23UE,REDACTED,REDACTED,REDACTED,REDACTED,REDACTED,13/08/2015,REDACTED,150,NET,REDACTED,REDACTED
Gloucester City Council,23UE,REDACTED,REDACTED,REDACTED,REDACTED,REDACTED,13/08/2015,REDACTED,50,NET,REDACTED,REDACTED
Gloucester City Council,23UE,Housing Works In Default,HD500,Clearance And Cleansing Fees,5384,15 The Moat - Garden Clearance,13/08/2015,406339,1640,NET,Rj Contracting (Environmental) Ltd,07429H
Gloucester City Council,23UE,Interpretation & Signage,GY012,Contract Payments,20,Information Display,13/08/2015,406342,768,CAP,Fitzpatrick Woolmer Design & Publishing Ltd,04091D
Gloucester City Council,23UE,Kings Quarter,RY146,Contract Payments,20,Fees for Services,13/08/2015,406331,1104,CAP,Aecom Ltd,12443V
Gloucester City Council,23UE,Marchants,LT108,Materials For Sale,5080,Tickets April 2015,13/08/2015,405936,3415,NET,Marchants Coaches Ltd,48151Y
Gloucester City Council,23UE,Marchants,LT108,Materials For Sale,5080,Tickets May 2015,13/08/2015,405937,2947,NET,Marchants Coaches Ltd,48151Y
Gloucester City Council,23UE,Matson & Robinswood Play S106,LY151,Contract Payments,20,Install Sundeck - Robinswood Hill,13/08/2015,406400,4980,CAP,Sunshine Playgrounds Ltd,14958J
Gloucester City Council,23UE,Printing,RP103,Printing,5300,Print Room Sales July 2015,13/08/2015,406372,1413.33,NET,Alpha Colour Printers Ltd,00945B
Gloucester City Council,23UE,Retail Market - Landlord,HM300,Window Cleaning,3610,Monthly Window Clean,13/08/2015,406338,140,NET,Cornwall Cleaning Services,14050A
Gloucester City Council,23UE,Robinswoodhill Trading Account,LP203,Routine R And M - Vehicles,4011,Battery,13/08/2015,406335,32.5,NET,Imperial Commercials (Gloucester) Ltd,12764V
Gloucester City Council,23UE,The Arbor,HC501,Catering Provisions -Food,5110,Food,13/08/2015,405985,21.76,NET,Total Produce Gloucester,12645E
Gloucester City Council,23UE,The Arbor,HC501,Catering Provisions -Food,5110,Food,13/08/2015,405986,54.01,NET,Total Produce Gloucester,12645E
Gloucester City Council,23UE,The Arbor,HC501,Catering Provisions -Food,5110,Food,13/08/2015,405987,24.89,NET,Total Produce Gloucester,12645E
Gloucester City Council,23UE,The Arbor,HC501,Catering Provisions -Food,5110,Food,13/08/2015,405988,12.2,NET,Total Produce Gloucester,12645E
Gloucester City Council,23UE,The Arbor,HC501,Catering Provisions -Food,5110,Food,13/08/2015,405989,56.98,NET,Total Produce Gloucester,12645E
Gloucester City Council,23UE,The Arbor,HC501,Catering Provisions -Food,5110,Food,13/08/2015,405990,37.22,NET,Total Produce Gloucester,12645E
Gloucester City Council,23UE,The Arbor,HC501,Catering Provisions -Food,5110,Food,13/08/2015,405991,21.8,NET,Total Produce Gloucester,12645E
Gloucester City Council,23UE,The Arbor,HC501,Cleaning Materials,3600,Disposal Units,13/08/2015,402348,34.56,NET,Minster Cleaning Services,02158R
Gloucester City Council,23UE,The Arbor,HC501,Maint Agreements - Buildings,3010,machine hire,13/08/2015,404574,61.58,NET,Caffeica Ltd,11923J
Gloucester City Council,23UE,The Arbor,HC501,Maint Agreements - Buildings,3010,Monthly Machine Warranty,13/08/2015,405657,61.58,NET,Caffeica Ltd,11923J
Gloucester City Council,23UE,Tic Trading,LT110,Materials For Sale,5080,Gloucester DVD,13/08/2015,406353,73.52,NET,1st Take Ltd,05598B
Gloucester City Council,23UE,Tic Trading,LT110,Materials For Sale,5080,Various Items,13/08/2015,406354,317.53,NET,Norfolk China Ltd,12863S
Gloucester City Council,23UE,Tic Trading,LT110,Materials For Sale,5080,Whittle - The Jet Pioneer - DVD's,13/08/2015,406351,61.25,NET,Quanta Ltd,06066B
Gloucester City Council,23UE,REDACTED,REDACTED,REDACTED,REDACTED,REDACTED,13/08/2015,REDACTED,40,NET,REDACTED,REDACTED
Gloucester City Council,23UE,Tourism Marketing,LT100,Security Services Fees,5351,Services September 2015,13/08/2015,406399,90.64,NET,G4s Cash Solutions (Uk) Ltd,04290V
Gloucester City Council,23UE,Abbeymead Rovers Fc (Atg),LY072,Contract Payments,20,Various items,14/08/2015,405927,4949,CAP,Proludic Ltd,03576G
Gloucester City Council,23UE,Blackfriars,LA609,Contract Cleaning,3620,Cover Cleaning July 2015,14/08/2015,405917,525,NET,Into Cleaning,14609P
Gloucester City Council,23UE,Cemeteries,HC300,Basic Pay - Temporary Staff,2751,temporary staff w/e 19/07/2015,14/08/2015,405941,469.2,NET,Premiere Employment Group Ltd,55468Z
Gloucester City Council,23UE,Cemeteries,HC300,Basic Pay - Temporary Staff,2751,Temporary staff w/e 26/07/2015,14/08/2015,406348,469.2,NET,Premiere Employment Group Ltd,55468Z
Gloucester City Council,23UE,Cemeteries,HC300,Basic Pay - Temporary Staff,2751,temporary staff w/e 19/07/2015,14/08/2015,405942,439.88,NET,Premiere Employment Group Ltd,55468Z
Gloucester City Council,23UE,Cemeteries,HC300,Basic Pay - Temporary Staff,2751,Temporary staff w/e 26/07/2015,14/08/2015,406347,439.88,NET,Premiere Employment Group Ltd,55468Z
Gloucester City Council,23UE,Cemeteries,HC300,Maint Of Grounds - General,3030,Memorial Post,14/08/2015,406386,74.45,NET,Treasured Memories Limited,11058H
Gloucester City Council,23UE,Cemeteries,HC300,Operational Materials,5070,Millennia Spectacles,14/08/2015,406336,59.8,NET,Safpro Industrial Supply Co,39190W
Gloucester City Council,23UE,City Museum And Art Gallery,LM200,Advertising And Publicity,5702,Enhanced Upgrade,14/08/2015,406375,50,NET,Days Out Publishing Ltd,51029W
Gloucester City Council,23UE,City Museum Catering,LM202,Catering Provisions -Food,5110,Milk,14/08/2015,405712,6.9,NET,Total Produce Gloucester,12645E
Gloucester City Council,23UE,City Museum Catering,LM202,Catering Provisions -Food,5110,Milk,14/08/2015,405713,4.6,NET,Total Produce Gloucester,12645E
Gloucester City Council,23UE,REDACTED,REDACTED,REDACTED,REDACTED,REDACTED,14/08/2015,REDACTED,40,NET,REDACTED,REDACTED
Gloucester City Council,23UE,Contact Centre,RB300,Other Minor Supplies Services,5590,Monhtly Fee August 2015,14/08/2015,405950,237.57,NET,Office Response,09439K
Gloucester City Council,23UE,Corporate Expenses,RC110,Fees For Services Received,5350,ADVERT 08/08/15,14/08/2015,406181,4000,NET,Local World Ltd,08556P
Gloucester City Council,23UE,Council Streetcare Team,HI101,General Repair/Maint Buildings,3000,Playground Repairs,14/08/2015,403898,132.6,NET,Enterprise (Aol) Ltd,06695G
Gloucester City Council,23UE,Council Streetcare Team,HI101,Window Cleaning,3610,Window Cleaning July 2015,14/08/2015,406358,140,NET,Poles Apart Window Cleaning,11636R
Gloucester City Council,23UE,Council Streetcare Team,HI101,Window Cleaning,3610,Window Cleaning June 2015,14/08/2015,406357,130,NET,Poles Apart Window Cleaning,11636R
Gloucester City Council,23UE,Disabled Facilities Grants,CY013,Disabled Facility Grants,74,Disabled Facilities Grant,14/08/2015,406461,1125,CAP,Tpg Disableaids,51324R
Gloucester City Council,23UE,Electrical Investigatory Works,RY142,Contract Payments,20,BLACKFRIARS,14/08/2015,405267,1600,CAP,Chubb Fire & Security Ltd,54582K
Gloucester City Council,23UE,Environmental Planning,LM340,Fees For Services Received,5350,"Horse Chestnut Tree, 16 Barnwood Av",14/08/2015,406337,650,NET,Jpu Services Ltd,11056K
Gloucester City Council,23UE,Folk Museum,LM210,Advertising And Publicity,5702,Enhanced Upgrade,14/08/2015,406376,50,NET,Days Out Publishing Ltd,51029W
Gloucester City Council,23UE,Gloucester Guildhall,LA100,Maintenance Of Equipment,5030,Carriage Charge,14/08/2015,405370,135,NET,Beenoticed Limited,56587E
Gloucester City Council,23UE,REDACTED,REDACTED,REDACTED,REDACTED,REDACTED,14/08/2015,REDACTED,255.72,NET,REDACTED,REDACTED
Gloucester City Council,23UE,REDACTED,REDACTED,REDACTED,REDACTED,REDACTED,14/08/2015,REDACTED,395,NET,REDACTED,REDACTED
Gloucester City Council,23UE,Off Street Car Parks,PP110,Fees For Services Received,5350,Jul-15,14/08/2015,404387,500.2,NET,Parkeon Ltd,03238G
Gloucester City Council,23UE,Off Street Car Parks,PP110,General Repair/Maint Buildings,3000,"B&M Bargains, Southgate Street",14/08/2015,405556,1180,NET,Three Counties Drain Service,44033V
Gloucester City Council,23UE,Parks Contract Management,LP100,Maint Of Grounds - General,3030,Playground Repairs,14/08/2015,403898,717.12,NET,Enterprise (Aol) Ltd,06695G
Gloucester City Council,23UE,REDACTED,REDACTED,REDACTED,REDACTED,REDACTED,14/08/2015,REDACTED,28,NET,REDACTED,REDACTED
Gloucester City Council,23UE,Pollution Control,HE300,Charges For Services,9300,SHOES,14/08/2015,406239,32.95,NET,Safpro Industrial Supply Co,39190W
Gloucester City Council,23UE,Shopmobility,PE200,Cleaning Materials,3600,Medical Waste,14/08/2015,405945,7.11,NET,Ocs Group Uk Limited T/A Cannon,06506A
Gloucester City Council,23UE,Vehicles,RS140,Fuel,4012,Fuel,14/08/2015,406392,175.73,NET,Allstar Business Solutions Ltd (Arval),06594A
Gloucester City Council,23UE,Abbeymead Rovers Fc (Atg),LY072,Contract Payments,20,Various Items,17/08/2015,405928,4977,CAP,Proludic Ltd,03576G
Gloucester City Council,23UE,Business Transformation & Tech,RT700,Computer Software Maintenance,5427,HOMESEEKER,17/08/2015,405009,9000,NET,Forest Of Dean District Council,15985W
Gloucester City Council,23UE,Cemeteries,HC300,General Repair/Maint Buildings,3000,Supply and Fit Signs,17/08/2015,406027,1340,NET,Hanman Split Ltd,56889J
Gloucester City Council,23UE,City Museum Catering,LM202,Catering Provisions -Food,5110,Coffee Beans,17/08/2015,405546,95.45,NET,James Gourmet Coffee Co.,55049A
Gloucester City Council,23UE,City Museum Catering,LM202,Catering Provisions -Food,5110,Food,17/08/2015,405701,115.8,NET,Woodward Foodservice,10714F
Gloucester City Council,23UE,City Museum Catering,LM202,Catering Provisions -Food,5110,Milk,17/08/2015,405702,4.6,NET,Total Produce Gloucester,12645E
Gloucester City Council,23UE,City Museum Catering,LM202,Catering Provisions -Food,5110,Milk,17/08/2015,405703,4.6,NET,Total Produce Gloucester,12645E
Gloucester City Council,23UE,City Museum Catering,LM202,Catering Provisions -Food,5110,Milk,17/08/2015,405704,6.9,NET,Total Produce Gloucester,12645E
Gloucester City Council,23UE,City Museum Catering,LM202,Catering Provisions -Food,5110,Milk,17/08/2015,405705,4.6,NET,Total Produce Gloucester,12645E
Gloucester City Council,23UE,City Museum Catering,LM202,Catering Provisions -Food,5110,Milk,17/08/2015,405706,4.6,NET,Total Produce Gloucester,12645E
Gloucester City Council,23UE,City Museum Catering,LM202,Catering Provisions -Food,5110,Milk,17/08/2015,405707,2.3,NET,Total Produce Gloucester,12645E
Gloucester City Council,23UE,City Museum Catering,LM202,Catering Provisions -Food,5110,Milk,17/08/2015,405708,6.9,NET,Total Produce Gloucester,12645E
Gloucester City Council,23UE,Docks Complex - Castlemeads Cp,RB210,Contracted Services,6970,GC Fixed Overhead,17/08/2015,406362,773.48,NET,Apcoa Parking (Uk) Ltd,09954M
Gloucester City Council,23UE,Docks Complex - Castlemeads Cp,RB210,Contracted Services,6970,GC P&D and Head Cams,17/08/2015,406365,2096.19,NET,Apcoa Parking (Uk) Ltd,09954M
Gloucester City Council,23UE,Docks Complex - Castlemeads Cp,RB210,Contracted Services,6970,GC Variable Enforcement,17/08/2015,406363,286.43,NET,Apcoa Parking (Uk) Ltd,09954M
Gloucester City Council,23UE,Docks Complex - Castlemeads Cp,RB210,Contracted Services,6970,GC Vehicles,17/08/2015,406364,454.26,NET,Apcoa Parking (Uk) Ltd,09954M
Gloucester City Council,23UE,Folk Museum,LM210,Other Catering Provisions,5112,Various Food Items,17/08/2015,406341,126.93,NET,Ukv Solutions Ltd,14864V
Gloucester City Council,23UE,REDACTED,REDACTED,REDACTED,REDACTED,REDACTED,17/08/2015,REDACTED,100,NET,REDACTED,REDACTED
Gloucester City Council,23UE,REDACTED,REDACTED,REDACTED,REDACTED,REDACTED,17/08/2015,REDACTED,100,NET,REDACTED,REDACTED
Gloucester City Council,23UE,Hackney Carriages,HL100,Fees For Services Received,5350,Fabrication of taxi rank signs,17/08/2015,405935,292.5,NET,Hanman Split Ltd,56889J
Gloucester City Council,23UE,Investment Property,RB500,Emergency Lighting,3055,Various Repairs,17/08/2015,404726,320.08,NET,A & E Fire Equipment Limited,54289L
Gloucester City Council,23UE,Licences,HE510,Vocational Training,2970,BIIAB Licensing course fees,17/08/2015,404846,210,NET,Cotswold District Council,49331J
Gloucester City Council,23UE,Marchants,LT108,Materials For Sale,5080,Tickets June 2015,17/08/2015,406352,4861,NET,Marchants Coaches Ltd,48151Y
Gloucester City Council,23UE,Marketing Gloucester Charges,RC433,Events,5952,EVENTS,17/08/2015,406093,40000,NET,Marketing Gloucester Ltd,08925E
Gloucester City Council,23UE,Off Street Car Parks,PP110,Contracted Services,6970,GC Other Items,17/08/2015,406366,11367.4,NET,Apcoa Parking (Uk) Ltd,09954M
Gloucester City Council,23UE,Off Street Car Parks,PP110,Contracted Services,6970,GC Variable Enforcement,17/08/2015,406363,4828.09,NET,Apcoa Parking (Uk) Ltd,09954M
Gloucester City Council,23UE,Off Street Car Parks,PP110,General Repair/Maint Buildings,3000,Tariff Boards,17/08/2015,405934,92.5,NET,Hanman Split Ltd,56889J
Gloucester City Council,23UE,Public Health,HD200,Other Minor Supplies Services,5590,Podsmead Hearty Lives Project,17/08/2015,406488,4550,NET,University Of Gloucestershire,57991H
Gloucester City Council,23UE,Theatre Tokens,LT106,Materials For Sale,5080,Ticket Sales July 2015,17/08/2015,406389,130,NET,Society Of London Theatre,05656Z
Gloucester City Council,23UE,Theatre Tokens,LT106,Sale Of Goods And Services,9230,Ticket Sales July 2015,17/08/2015,406389,-6.5,NET,Society Of London Theatre,05656Z
Gloucester City Council,23UE,Blackfriars Catering,LA220,Catering Provisions -Liquor,5111,Drinks,18/08/2015,406505,211.6,NET,Cellar Supplies Cheltenham Ltd,01563L
Gloucester City Council,23UE,Blackfriars Catering,LA220,Catering Provisions -Liquor,5111,Drinks,18/08/2015,406506,646.78,NET,Cellar Supplies Cheltenham Ltd,01563L
Gloucester City Council,23UE,Blackfriars Catering,LA220,Catering Provisions -Liquor,5111,Gloucester Gold,18/08/2015,406504,114,NET,Gloucester Brewery,13373F
Gloucester City Council,23UE,Business Transformation & Tech,RT700,Computer Hardware Maintenance,5426,DELL TOWER,18/08/2015,406252,6770,NET,Dell Computers Corporation Ltd,55920C
Gloucester City Council,23UE,Civica Admin Charges,RT105,Postages,5400,Post 27/07 - 07/08 2015,18/08/2015,406565,1284.74,NET,Royal Mail S.Wales & South West,35830S
Gloucester City Council,23UE,Civic Admin And Hospitality,RC210,Muniments And Regalia,5033,Gloves,18/08/2015,406508,429,NET,Michaels Civic Robes,03293Y
Gloucester City Council,23UE,Contact Centre,RB300,Stationery,5302,Stationery,18/08/2015,406507,37.28,NET,Lyreco Uk Ltd,11746G
Gloucester City Council,23UE,Countryside Unit,LP201,General Repair/Maint Buildings,3000,Various Items,18/08/2015,406493,37.63,NET,Screwfix Direct,54672H
Gloucester City Council,23UE,Countryside Unit,LP201,General Repair/Maint Buildings,3000,various items,18/08/2015,406586,3.49,NET,Screwfix Direct,54672H
Gloucester City Council,23UE,Countryside Unit,LP201,Maint Of Grounds - General,3030,Blue Circle 20KG,18/08/2015,406492,27.88,NET,B&Q Trade Account,06346Y
Gloucester City Council,23UE,Docks Complex - Services,RB100,General Repair/Maint Buildings,3000,Water Leak - 02 & 03 July 2015,18/08/2015,405698,193,NET,Axiom Building Services,14908A
Gloucester City Council,23UE,Docks Complex - Services,RB100,Repair/Maint Of Fixed Plant,3006,Fault 12/06/2015,18/08/2015,405689,126.38,NET,Axiom Building Services,14908A
Gloucester City Council,23UE,Gloucester Guildhall,LA100,Subscriptions,5600,Membership Quarterly Aug - Oct 15,18/08/2015,406499,91.25,NET,Gloucester City Safe,14709J
Gloucester City Council,23UE,Gloucester Partnership,FP106,Other Minor Supplies Services,5590,grant,18/08/2015,406585,3000,NET,Together In Matson,53760RV
Gloucester City Council,23UE,Guildhall Bar And Caf�,LA210,Catering Provisions -Food,5110,Food,18/08/2015,406579,104.43,NET,Woodward Foodservice,10714F
Gloucester City Council,23UE,Guildhall Bar And Caf�,LA210,Catering Provisions -Food,5110,Fruit & Veg June 2015,18/08/2015,406569,61.35,NET,Woody'S Fruit & Veg,11798L
Gloucester City Council,23UE,Guildhall Bar And Caf�,LA210,Catering Provisions -Food,5110,Milk,18/08/2015,406566,4.6,NET,Total Produce Gloucester,12645E
Gloucester City Council,23UE,Guildhall Bar And Caf�,LA210,Catering Provisions -Food,5110,Milk,18/08/2015,406567,4.6,NET,Total Produce Gloucester,12645E
Gloucester City Council,23UE,Guildhall Bar And Caf�,LA210,Catering Provisions -Food,5110,Milk,18/08/2015,406568,4.6,NET,Total Produce Gloucester,12645E
Gloucester City Council,23UE,Guildhall Bar And Caf�,LA210,Catering Provisions -Food,5110,Milk,18/08/2015,406570,4.6,NET,Total Produce Gloucester,12645E
Gloucester City Council,23UE,Guildhall Bar And Caf�,LA210,Catering Provisions -Food,5110,Milk,18/08/2015,406571,4.6,NET,Total Produce Gloucester,12645E
Gloucester City Council,23UE,Guildhall Bar And Caf�,LA210,Catering Provisions -Food,5110,Milk,18/08/2015,406572,4.6,NET,Total Produce Gloucester,12645E
Gloucester City Council,23UE,Guildhall Bar And Caf�,LA210,Catering Provisions -Food,5110,Milk,18/08/2015,406573,4.6,NET,Total Produce Gloucester,12645E
Gloucester City Council,23UE,Guildhall Bar And Caf�,LA210,Catering Provisions -Food,5110,Milk,18/08/2015,406574,4.6,NET,Total Produce Gloucester,12645E
Gloucester City Council,23UE,Guildhall Bar And Caf�,LA210,Catering Provisions -Food,5110,Milk,18/08/2015,406575,4.6,NET,Total Produce Gloucester,12645E
Gloucester City Council,23UE,Guildhall Bar And Caf�,LA210,Catering Provisions -Food,5110,Milk,18/08/2015,406576,4.6,NET,Total Produce Gloucester,12645E
Gloucester City Council,23UE,Guildhall Bar And Caf�,LA210,Catering Provisions -Food,5110,Milk,18/08/2015,406577,4.6,NET,Total Produce Gloucester,12645E
Gloucester City Council,23UE,Guildhall Bar And Caf�,LA210,Catering Provisions -Food,5110,Milk,18/08/2015,406578,4.6,NET,Total Produce Gloucester,12645E
Gloucester City Council,23UE,Guildhall Bar And Caf�,LA210,Catering Provisions -Liquor,5111,Drinks,18/08/2015,406502,450.1,NET,Cellar Supplies Cheltenham Ltd,01563L
Gloucester City Council,23UE,Guildhall Bar And Caf�,LA210,Catering Provisions -Liquor,5111,Drinks,18/08/2015,406503,35,NET,Cellar Supplies Cheltenham Ltd,01563L
Gloucester City Council,23UE,REDACTED,REDACTED,REDACTED,REDACTED,REDACTED,18/08/2015,REDACTED,70.84,NET,REDACTED,REDACTED
Gloucester City Council,23UE,REDACTED,REDACTED,REDACTED,REDACTED,REDACTED,18/08/2015,REDACTED,100,NET,REDACTED,REDACTED
Gloucester City Council,23UE,REDACTED,REDACTED,REDACTED,REDACTED,REDACTED,18/08/2015,REDACTED,100,NET,REDACTED,REDACTED
Gloucester City Council,23UE,REDACTED,REDACTED,REDACTED,REDACTED,REDACTED,18/08/2015,REDACTED,368.2,NET,REDACTED,REDACTED
Gloucester City Council,23UE,REDACTED,REDACTED,REDACTED,REDACTED,REDACTED,18/08/2015,REDACTED,272.72,NET,REDACTED,REDACTED
Gloucester City Council,23UE,REDACTED,REDACTED,REDACTED,REDACTED,REDACTED,18/08/2015,REDACTED,400,NET,REDACTED,REDACTED
Gloucester City Council,23UE,REDACTED,REDACTED,REDACTED,REDACTED,REDACTED,18/08/2015,REDACTED,300,NET,REDACTED,REDACTED
Gloucester City Council,23UE,Innsworth Lane Sports Pitches,LY079,Contract Payments,20,Mains Disinfection,18/08/2015,406496,700,CAP,Kingfisher Environmental Services Ltd,04738V
Gloucester City Council,23UE,Investment Property,RB500,Door Entry Systems Maint,3064,Repairs to Shutter Door,18/08/2015,405510,265,NET,Pro Door Ltd,04760C
Gloucester City Council,23UE,Investment Property,RB500,General Repair/Maint Buildings,3000,Wingate Club - 12/06/2015,18/08/2015,405691,126.38,NET,Axiom Building Services,14908A
Gloucester City Council,23UE,Investment Property,RB500,Repair/Maint Of Fixed Plant,3006,Blackfriars Priory - 12/06/2015,18/08/2015,405690,126.38,NET,Axiom Building Services,14908A
Gloucester City Council,23UE,Investment Property,RB500,Repair/Maint Of Fixed Plant,3006,Engineer 30/06 & 01/07 2015,18/08/2015,405699,384.7,NET,Axiom Building Services,14908A
Gloucester City Council,23UE,Investment Property,RB500,Repair/Maint Of Fixed Plant,3006,Folk Musuem - 12/06/2015,18/08/2015,405692,126.38,NET,Axiom Building Services,14908A
Gloucester City Council,23UE,Investment Property,RB500,Repair/Maint Of Fixed Plant,3006,Renewal of Maintenance Agreement,18/08/2015,404432,654,NET,Mitchells (Gloucester) Ltd,30160U
Gloucester City Council,23UE,Retail Market - Landlord,HM300,Cleaning Kingsholm,3036,Spray Aerosol,18/08/2015,406495,38.77,NET,Yate Supplies,12850B
Gloucester City Council,23UE,Retail Market - Landlord,HM300,Trade Refuse Collection,3630,Skip Charges 14/15,18/08/2015,405537,2772,NET,Barnwood Shopfitting Ltd,02590Y
Gloucester City Council,23UE,Stationery Services,RS150,Printing,5300,PAPER,18/08/2015,406596,54.08,NET,Stanford Marsh Ltd,51139M
Gloucester City Council,23UE,The Arbor,HC501,Catering Provisions -Food,5110,FOOD,18/08/2015,406242,103.94,NET,Janes Pantry,24500W
Gloucester City Council,23UE,The Arbor,HC501,Catering Provisions -Food,5110,Food w/e 26/07/2015,18/08/2015,405952,245.58,NET,Janes Pantry,24500W
Gloucester City Council,23UE,Utilities,PT502,Electricity Supply,3110,106 WESTGATE ST,18/08/2015,403603,123.04,NET,Npower,03929V
Gloucester City Council,23UE,Utilities,PT502,Electricity Supply,3110,106 WESTGATE ST,18/08/2015,403604,74.29,NET,Npower,03929V
Gloucester City Council,23UE,Utilities,PT502,Electricity Supply,3110,106 WESTGATE ST,18/08/2015,403605,59.36,NET,Npower,03929V
Gloucester City Council,23UE,Utilities,PT502,Electricity Supply,3110,UNIT 8 GROSVENOR HOUSE,18/08/2015,406589,27.9,NET,Corona Energy,09034T
Gloucester City Council,23UE,Utilities,PT502,Electricity Supply,3110,UNIT 8 GROSVENOR HOUSE,18/08/2015,406590,27,NET,Corona Energy,09034T
Gloucester City Council,23UE,Utilities,PT502,Electricity Supply,3110,UNIT 8 GROSVENOR HOUSE,18/08/2015,406591,27.9,NET,Corona Energy,09034T
Gloucester City Council,23UE,Utilities,PT502,Electricity Supply,3110,UNIT 8 GROSVENOR HOUSE,18/08/2015,406592,27,NET,Corona Energy,09034T
Gloucester City Council,23UE,Utilities,PT502,Electricity Supply,3110,UNIT 8 GROSVENOR HOUSE,18/08/2015,406593,108.5,NET,Corona Energy,09034T
Gloucester City Council,23UE,Utilities,PT502,Electricity Supply,3110,UNIT 8 GROSVENOR HOUSE,18/08/2015,406594,98,NET,Corona Energy,09034T
Gloucester City Council,23UE,Utilities,PT502,Electricity Supply,3110,UNIT 8 GROSVENOR HOUSE,18/08/2015,406595,108.5,NET,Corona Energy,09034T
Gloucester City Council,23UE,Utilities,PT502,Electricity Supply,3110,UTILITIES TO AUG 2015,18/08/2015,406597,13804.49,NET,West Mercia Energy,11669Z
Gloucester City Council,23UE,Utilities,PT502,Electricity Supply,3110,UTILITIES TO JULY 2015,18/08/2015,405964,175.37,NET,West Mercia Energy,11669Z
Gloucester City Council,23UE,Utilities,PT502,Electricity Supply,3110,YMCA,18/08/2015,405786,141.74,NET,British Gas Business,08301C
Gloucester City Council,23UE,Utilities,PT502,Electricity Supply,3110,YMCA,18/08/2015,405787,140.67,NET,British Gas Business,08301C
Gloucester City Council,23UE,Utilities,PT502,Gas Supply,3100,UTILITIES TO AUG 2015,18/08/2015,406597,1257.71,NET,West Mercia Energy,11669Z
Gloucester City Council,23UE,Utilities,PT502,Gas Supply,3100,UTILITIES TO JULY 2015,18/08/2015,405964,13702.26,NET,West Mercia Energy,11669Z
Gloucester City Council,23UE,Vehicles,RS140,Routine R And M - Vehicles,4011,Vehicle Health Check,18/08/2015,406494,47.68,NET,Blade Motor Company,13671U
Gloucester City Council,23UE,Cemeteries,HC300,Maint Of Grounds - General,3030,Cultivator hire,19/08/2015,406526,37,NET,Ermin Plant Hire & Services Ltd,14150V
Gloucester City Council,23UE,Cemeteries,HC300,"Seeds, Trees, Plants, Shrubs",3028,PLANTS,19/08/2015,406599,576.56,NET,Genus Softworks Ltd,12320N
Gloucester City Council,23UE,Cemeteries,HC300,Trade Refuse Tipping Fees,6297,Green waste skip exchange,19/08/2015,406523,380,NET,Allstone Sand & Gravel Aggregates Ltd,00940M
Gloucester City Council,23UE,City Museum And Art Gallery,LM200,Events,5952,Easter Holidays events,19/08/2015,406547,450,NET,Roaming Reptiles,15440X
Gloucester City Council,23UE,REDACTED,REDACTED,REDACTED,REDACTED,REDACTED,19/08/2015,REDACTED,314.5,NET,REDACTED,REDACTED
Gloucester City Council,23UE,City Museum Catering,LM202,Operational Equipment <5000,5012,July 2015 machine rental,19/08/2015,406545,135,NET,La Spaziale Uk Ltd,11823P
Gloucester City Council,23UE,Contact Centre,RB300,Basic Pay - Temporary Staff,2751,temporary staff w/e 9/8/15,19/08/2015,406553,665,NET,Morgan Hunt Uk Ltd,04451S
Gloucester City Council,23UE,Countryside Unit,LP201,Contract Cleaning,3620,Rangers office cleaning,19/08/2015,405687,130,NET,Cv Fisher Cleaning Services,14907C
Gloucester City Council,23UE,Crematorium,HC200,Fertilisers,3029,PLANTS,19/08/2015,406599,85.5,NET,Genus Softworks Ltd,12320N
Gloucester City Council,23UE,Crematorium,HC200,Maint Of Grounds - General,3030,PLANTS,19/08/2015,406599,2064,NET,Genus Softworks Ltd,12320N
Gloucester City Council,23UE,Crematorium,HC200,Memorial Plaques,5053,plaques,19/08/2015,406524,415,NET,Arkell & Hurcombe,59812T
Gloucester City Council,23UE,Crematorium,HC200,Memorial Plaques,5053,plaques,19/08/2015,406525,157,NET,Arkell & Hurcombe,59812T
Gloucester City Council,23UE,Crematorium,HC200,"Seeds, Trees, Plants, Shrubs",3028,PLANTS,19/08/2015,406599,85.5,NET,Genus Softworks Ltd,12320N
Gloucester City Council,23UE,REDACTED,REDACTED,REDACTED,REDACTED,REDACTED,19/08/2015,REDACTED,400,NET,REDACTED,REDACTED
Gloucester City Council,23UE,Docks Complex - Services,RB100,Catering Provisions -Food,5110,buffet 8/7/15,19/08/2015,406691,110.88,NET,Janes Pantry,24500W
Gloucester City Council,23UE,Docks Complex - Services,RB100,Catering Provisions -Food,5110,Buffet Menu,19/08/2015,405887,47.52,NET,Janes Pantry,24500W
Gloucester City Council,23UE,Docks Complex - Services,RB100,Catering Provisions -Food,5110,Buffet Menu 27/07/2015,19/08/2015,405888,39.6,NET,Janes Pantry,24500W
Gloucester City Council,23UE,Docks Complex - Services,RB100,Catering Provisions -Food,5110,food,19/08/2015,406647,187.26,NET,Bidvest Foodservice (3663),55585U
Gloucester City Council,23UE,Docks Complex - Services,RB100,Catering Provisions -Food,5110,food,19/08/2015,406650,32.85,NET,Total Produce Gloucester,12645E
Gloucester City Council,23UE,Docks Complex - Services,RB100,Catering Provisions -Food,5110,food,19/08/2015,406651,64.05,NET,Total Produce Gloucester,12645E
Gloucester City Council,23UE,Docks Complex - Services,RB100,Catering Provisions -Food,5110,food,19/08/2015,406657,29.61,NET,Total Produce Gloucester,12645E
Gloucester City Council,23UE,Docks Complex - Services,RB100,Catering Provisions -Food,5110,food,19/08/2015,406658,46.17,NET,Total Produce Gloucester,12645E
Gloucester City Council,23UE,Docks Complex - Services,RB100,Catering Provisions -Food,5110,food,19/08/2015,406659,41.72,NET,Total Produce Gloucester,12645E
Gloucester City Council,23UE,Docks Complex - Services,RB100,Catering Provisions -Food,5110,food,19/08/2015,406660,8.64,NET,Total Produce Gloucester,12645E
Gloucester City Council,23UE,Docks Complex - Services,RB100,Catering Provisions -Food,5110,food,19/08/2015,406661,10.67,NET,Total Produce Gloucester,12645E
Gloucester City Council,23UE,Docks Complex - Services,RB100,Catering Provisions -Food,5110,food,19/08/2015,406662,19.97,NET,Total Produce Gloucester,12645E
Gloucester City Council,23UE,Docks Complex - Services,RB100,Catering Provisions -Food,5110,food,19/08/2015,406663,216.02,NET,Bidvest Foodservice (3663),55585U
Gloucester City Council,23UE,Docks Complex - Services,RB100,Catering Provisions -Food,5110,food,19/08/2015,406664,262.07,NET,Bidvest Foodservice (3663),55585U
Gloucester City Council,23UE,Docks Complex - Services,RB100,Catering Provisions -Food,5110,food,19/08/2015,406665,25.21,NET,Total Produce Gloucester,12645E
Gloucester City Council,23UE,Docks Complex - Services,RB100,Catering Provisions -Food,5110,food,19/08/2015,406666,27.56,NET,Total Produce Gloucester,12645E
Gloucester City Council,23UE,Docks Complex - Services,RB100,Catering Provisions -Food,5110,food,19/08/2015,406667,15.99,NET,Total Produce Gloucester,12645E
Gloucester City Council,23UE,Docks Complex - Services,RB100,Catering Provisions -Food,5110,food,19/08/2015,406668,18.96,NET,Total Produce Gloucester,12645E
Gloucester City Council,23UE,Docks Complex - Services,RB100,Catering Provisions -Food,5110,food,19/08/2015,406669,20.22,NET,Total Produce Gloucester,12645E
Gloucester City Council,23UE,Docks Complex - Services,RB100,Catering Provisions -Food,5110,food,19/08/2015,406670,15.84,NET,Total Produce Gloucester,12645E
Gloucester City Council,23UE,Docks Complex - Services,RB100,Catering Provisions -Food,5110,food,19/08/2015,406671,49.17,NET,Total Produce Gloucester,12645E
Gloucester City Council,23UE,Docks Complex - Services,RB100,Catering Provisions -Food,5110,food,19/08/2015,406672,8.64,NET,Total Produce Gloucester,12645E
Gloucester City Council,23UE,Docks Complex - Services,RB100,Catering Provisions -Food,5110,food,19/08/2015,406673,51.16,NET,Total Produce Gloucester,12645E
Gloucester City Council,23UE,Docks Complex - Services,RB100,Catering Provisions -Food,5110,food,19/08/2015,406674,18.19,NET,Total Produce Gloucester,12645E
Gloucester City Council,23UE,Docks Complex - Services,RB100,Catering Provisions -Food,5110,food,19/08/2015,406675,7.92,NET,Total Produce Gloucester,12645E
Gloucester City Council,23UE,Docks Complex - Services,RB100,Catering Provisions -Food,5110,food,19/08/2015,406676,92.05,NET,Total Produce Gloucester,12645E
Gloucester City Council,23UE,Docks Complex - Services,RB100,Catering Provisions -Food,5110,Food w/e 21/07/2015,19/08/2015,405655,31.68,NET,Janes Pantry,24500W
Gloucester City Council,23UE,Docks Complex - Services,RB100,Recycling,3631,Recycling July 2015,19/08/2015,406378,45,NET,Printwaste Recycling,57114W
Gloucester City Council,23UE,Docks Complex - Services,RB100,Recycling,3631,Shredding,19/08/2015,406380,99.9,NET,Printwaste Recycling,57114W
Gloucester City Council,23UE,Docks Complex - Services,RB100,Service Charges,3020,Water Cooler 15/16,19/08/2015,405517,582,NET,Greenworks Solutions Ltd,05909G
Gloucester City Council,23UE,Docks Complex - Services,RB100,Service Charges,3020,Water Cooler June 2015,19/08/2015,405518,153,NET,Greenworks Solutions Ltd,05909G
Gloucester City Council,23UE,Emergency Planning,RO100,Hospitality,5122,Ex Victorius catering charges,19/08/2015,406546,137.5,NET,"Police & Crime Commissioner, Gloucestershire",49521B
Gloucester City Council,23UE,Folk Museum,LM210,Events,5952,May half term event,19/08/2015,406548,250,NET,Roaming Reptiles,15440X
Gloucester City Council,23UE,REDACTED,REDACTED,REDACTED,REDACTED,REDACTED,19/08/2015,REDACTED,646,CAP,REDACTED,REDACTED
Gloucester City Council,23UE,Gloucester Guildhall,LA100,Furniture,5000,redelivery charge,19/08/2015,406520,10,NET,Furniture@Work Ltd,01124U
Gloucester City Council,23UE,Grants To Voluntary Sector,FG100,Grants,7100C,FESTIVALS AND EVENTS 2015-16,19/08/2015,406642,562,NET,The Nelson Trust,05437D
Gloucester City Council,23UE,Grants To Voluntary Sector,FG100,Grants,7100C,FESTIVALS AND EVENTS 2015-16,19/08/2015,406644,1000,NET,Longlevens Rfc Ltd,02805A
Gloucester City Council,23UE,Grants To Voluntary Sector,FG100,Grants,7100C,FESTIVALS AND EVENTS GRANT 2015-16,19/08/2015,406645,986.01,NET,Gordon League Rfc,15275M
Gloucester City Council,23UE,REDACTED,REDACTED,REDACTED,REDACTED,REDACTED,19/08/2015,REDACTED,820,NET,REDACTED,REDACTED
Gloucester City Council,23UE,REDACTED,REDACTED,REDACTED,REDACTED,REDACTED,19/08/2015,REDACTED,100,NET,REDACTED,REDACTED
Gloucester City Council,23UE,REDACTED,REDACTED,REDACTED,REDACTED,REDACTED,19/08/2015,REDACTED,129.94,NET,REDACTED,REDACTED
Gloucester City Council,23UE,REDACTED,REDACTED,REDACTED,REDACTED,REDACTED,19/08/2015,REDACTED,83.44,NET,REDACTED,REDACTED
Gloucester City Council,23UE,REDACTED,REDACTED,REDACTED,REDACTED,REDACTED,19/08/2015,REDACTED,123.69,NET,REDACTED,REDACTED
Gloucester City Council,23UE,REDACTED,REDACTED,REDACTED,REDACTED,REDACTED,19/08/2015,REDACTED,600,NET,REDACTED,REDACTED
Gloucester City Council,23UE,Hackney Carriages,HL100,Fees For Services Received,5350,DBS Checks,19/08/2015,403337,308,NET,Disclosure And Barring Service,00119W
Gloucester City Council,23UE,Hackney Carriages,HL100,Fees For Services Received,5350,DVLA,19/08/2015,405054,34,NET,Intelligent Data Systems (Uk) Ltd,11067G
Gloucester City Council,23UE,Hackney Carriages,HL100,Fees For Services Received,5350,DVLA CHECKS,19/08/2015,406191,101.5,NET,Intelligent Data Systems (Uk) Ltd,11067G
Gloucester City Council,23UE,Hackney Carriages,HL100,Fees For Services Received,5350,DVLA Electronic Check,19/08/2015,403387,36.25,NET,Intelligent Data Systems (Uk) Ltd,11067G
Gloucester City Council,23UE,Hempsted Market/Car Boot,HM234,Sewerage And Environ Charges,3402,toilet hire,19/08/2015,406522,498.2,NET,Abbey Loos Limited,10787B
Gloucester City Council,23UE,Homelessness Prevention,CH122,Grants To Advice Centres,7100,installation of target hardening,19/08/2015,406518,10000,NET,Safe Partnership Ltd,11195A
Gloucester City Council,23UE,Housing Strategy & Enabling,CH110,Other Minor Supplies Services,5590,Airflow mesh chair,19/08/2015,406554,104,NET,Bestbuy Office Chairs,15521W
Gloucester City Council,23UE,Investment Property,RB500,Fire Alarm Maintenance,3053,CREM,19/08/2015,406144,119.31,NET,Adt Fire & Security Plc,54086D
Gloucester City Council,23UE,Kings Quarter,RY146,Purchase Cost -Land,1,remove Grosvenor House banners,19/08/2015,406637,940,CAP,M L Signs,15072E
Gloucester City Council,23UE,Nms Contract,HI102,Additional Non-Tender Items,6973,Various Item,19/08/2015,406355,903,NET,Polystar Plastics Ltd,01120C
Gloucester City Council,23UE,Planning Policy,PT300,Vocational Training,2970,training course 16/10/15,19/08/2015,406636,150,NET,Royal Town Planning Institute,38710Z
Gloucester City Council,23UE,Retail Market - Landlord,HM300,Cleaning Materials,3600,cleaning materials,19/08/2015,406640,241.3,NET,Core Hygiene Ltd,03885P
Gloucester City Council,23UE,REDACTED,REDACTED,REDACTED,REDACTED,REDACTED,19/08/2015,REDACTED,10441,CAP,REDACTED,REDACTED
Gloucester City Council,23UE,Blackfriars Priory,RY207,Contract Payments,20,Blackfriars retention,20/08/2015,406773,471.25,CAP,Pinetree (Gloucester) Ltd,53288Y
Gloucester City Council,23UE,Cemeteries,HC300,Tyres,4014,GATOR,20/08/2015,406757,118.89,NET,A T S Euromaster Ltd,01860B
Gloucester City Council,23UE,Cemeteries,HC300,Tyres,4014,MOWER,20/08/2015,406758,61.3,NET,A T S Euromaster Ltd,01860B
Gloucester City Council,23UE,City Museum And Art Gallery,LM200,Overtime -Duty Managers,1503,paint,20/08/2015,404724,39.36,NET,Crown Decorating Centres (Customer Accounts),11360K
Gloucester City Council,23UE,Contact Centre,RB300,Stationery,5302,stationery,20/08/2015,406769,278.58,NET,Lyreco Uk Ltd,11746G
Gloucester City Council,23UE,Council Streetcare Team,HI101,Maint Of Grounds - General,3030,Saintbridge Balancing Pond info board,20/08/2015,406767,124,NET,Greenfields Garden Services Ltd,48130G
Gloucester City Council,23UE,Council Streetcare Team,HI101,Maint Of Grounds - General,3030,SIGN,20/08/2015,406737,37.35,NET,Severn Signs Ltd,49841D
Gloucester City Council,23UE,Council Streetcare Team,HI101,Operational Equipment <5000,5012,Streetmaster Pro,20/08/2015,406776,190,NET,The Helping Hand Company,08066N
Gloucester City Council,23UE,Crematorium,HC200,Memorial Plaques,5053,PLAQUE HICKS,20/08/2015,406748,150,NET,Steel & Stone (York),57204U
Gloucester City Council,23UE,Development Management,PT200,Advertising And Publicity,5702,Adverts 13/08/15,20/08/2015,406638,146.08,NET,Local World Ltd,08556P
Gloucester City Council,23UE,Economic Development,FP300,Business Grant,7116,GRANT,20/08/2015,406759,500,NET,Rapid Concept Limited,15802J
Gloucester City Council,23UE,Gloucester Guildhall,LA100,Fees For Services Received,5350,FIRST AID,20/08/2015,406756,125,NET,First Aid And Trauma Training,15988P
Gloucester City Council,23UE,Grants To Voluntary Sector,FG100,Grants,7100C,communiy grant 2015-16,20/08/2015,406781,2493,NET,Gloucestershire Deaf Association,55868C
Gloucester City Council,23UE,Grants To Voluntary Sector,FG100,Grants,7100C,Festivals & Events grant 2015-16,20/08/2015,406778,450,NET,Gl Communities,09535X
Gloucester City Council,23UE,Homelessness,CH120,Fees For Services Received,5350,Lawtel Articles Express,20/08/2015,406633,12,NET,Thomson Reuters,43110M
Gloucester City Council,23UE,REDACTED,REDACTED,REDACTED,REDACTED,REDACTED,20/08/2015,REDACTED,272.72,NET,REDACTED,REDACTED
Gloucester City Council,23UE,Interpretation & Signage,GY012,Contract Payments,20,St Oswalds Priory interpretation board,20/08/2015,406768,195,CAP,Greenfields Garden Services Ltd,48130G
Gloucester City Council,23UE,Investment Property,RB500,Advertising And Publicity,5702,WOODS ORCHARD RD,20/08/2015,406734,225,NET,Alder King,02367D
Gloucester City Council,23UE,Investment Property,RB500,General Repair/Maint Buildings,3000,CALL OUT 04/08/15,20/08/2015,406732,421.65,NET,Adt Fire & Security Plc,54086D
Gloucester City Council,23UE,Investment Property,RB500,General Repair/Maint Buildings,3000,HKP,20/08/2015,406739,75,NET,Pickerings Europe Ltd,58816U
Gloucester City Council,23UE,Investment Property,RB500,General Repair/Maint Buildings,3000,VISIT 17/07/15,20/08/2015,406733,480,NET,Adt Fire & Security Plc,54086D
Gloucester City Council,23UE,Managing Director,RE100,Subscriptions,5600,2015-16 membership,20/08/2015,406770,398,NET,Solace,07481F
Gloucester City Council,23UE,Matson & Robinswood Play S106,LY151,Contract Payments,20,Robinswood Hill play area works,20/08/2015,406516,4900,CAP,Landscape To Play Ltd,09116P
Gloucester City Council,23UE,Off Street Car Parks,PP110,Fees For Services Received,5350,Charges August 2015,20/08/2015,405679,515.88,NET,Parkeon Ltd,03238G
Gloucester City Council,23UE,Parks Contract Management,LP100,Maint Of Grounds - General,3030,SWING,20/08/2015,406742,76.68,NET,Enterprise (Aol) Ltd,06695G
Gloucester City Council,23UE,Pollution Control,HE300,Charges For Services,9300,43 Cecil Road,20/08/2015,405903,80,NET,Severnside Security Ltd,14661M
Gloucester City Council,23UE,Pollution Control,HE300,Fees For Services Received,5350,SD CARD,20/08/2015,406745,112,NET,Campbell Associates,58924P
Gloucester City Council,23UE,Rugby World Cup,LT450,Fees For Services Received,5350,RWC20XV Bandstand for Fanzone,20/08/2015,406771,1475,NET,Victorian Lace Designs,15803G
Gloucester City Council,23UE,Townscape Heritage Initiative,LY145,Contract Payments,20,Buffet,20/08/2015,406762,105.8,CAP,Janes Pantry,24500W
Gloucester City Council,23UE,Townscape Heritage Initiative,LY145,Contract Payments,20,BUFFET,20/08/2015,406738,105.8,CAP,Janes Pantry,24500W
Gloucester City Council,23UE,Vehicles,RS140,Fuel,4012,Fuel,20/08/2015,406564,257.81,NET,Allstar Business Solutions Ltd (Arval),06594A
Gloucester City Council,23UE,Youth Grant 2011/12,FP107,Grants,7100C,youth grant 2015-16,20/08/2015,406779,2380,NET,Gloucestershire Deaf Association,55868C
Gloucester City Council,23UE,Youth Grant 2011/12,FP107,Grants,7100C,Youth Grant 2015-16,20/08/2015,406780,1276,NET,Gloucestershire Deaf Association,55868C
Gloucester City Council,23UE,Alney Island,PY128,Contract Payments,20,Massey Ferguson baler,21/08/2015,406555,12350,CAP,Chandlers (Farm Equipment) Limited,15794F
Gloucester City Council,23UE,Blackfriars,LA609,Cleaning Materials,3600,Rental Sep - Dec 2015,21/08/2015,406519,52.65,NET,Wessex Products (Leasing) Ltd,03684C
Gloucester City Council,23UE,Cemeteries,HC300,Operational Materials,5070,Sweeping Jun - Jul 2015,21/08/2015,405644,192,NET,Enterprise (Aol) Ltd,06695G
Gloucester City Council,23UE,City Centre Cctv System,PY275,Contract Payments,20,Kingsholm Road CCTV connection,21/08/2015,406529,1187.51,CAP,Western Power Distribution,13058T
Gloucester City Council,23UE,City Centre Cctv System,PY275,Contract Payments,20,Worcester St CCTV electrical connection,21/08/2015,406528,1847.68,CAP,Western Power Distribution,13058T
Gloucester City Council,23UE,Community Safety Projects,FP500,Basic Pay - Temporary Staff,2751,TEMPORARY STAFF W/E 07/08/15,21/08/2015,406754,537.57,NET,Travail Employment Ltd,49371W
Gloucester City Council,23UE,Contact Centre,RB300,Basic Pay - Temporary Staff,2751,temporary staff w/e 15/8/15,21/08/2015,406823,566.47,NET,One To One Recruitment,04752H
Gloucester City Council,23UE,Contact Centre,RB300,Basic Pay - Temporary Staff,2751,temporary staff w/e 15/8/15,21/08/2015,406824,756.03,NET,One To One Recruitment,04752H
Gloucester City Council,23UE,Contact Centre,RB300,Stationery,5302,A4 paper,21/08/2015,406765,451,NET,Premier Paper Group Ltd,09166Y
Gloucester City Council,23UE,Council Streetcare Team,HI101,Maint Of Grounds - General,3030,Clock Tower works,21/08/2015,405684,893.5,NET,Greenfields Garden Services Ltd,48130G
Gloucester City Council,23UE,Countryside Unit,LP201,General Repair/Maint Buildings,3000,animal feed,21/08/2015,406775,43.15,NET,John E Haith Ltd,15864K
Gloucester City Council,23UE,Disabled Facilities Grants,CY013,Disabled Facility Grants,74,Disabled Facilities Grant,21/08/2015,406816,744.6,CAP,Beard & Tandy,03160V
Gloucester City Council,23UE,Docks Complex - Services,RB100,Catering Provisions -Food,5110,food,21/08/2015,406648,7.59,NET,Janes Pantry,24500W
Gloucester City Council,23UE,Docks Complex - Services,RB100,Catering Provisions -Food,5110,food,21/08/2015,406649,17.37,NET,Janes Pantry,24500W
Gloucester City Council,23UE,Docks Complex - Services,RB100,Catering Provisions -Food,5110,food,21/08/2015,406652,8.97,NET,Janes Pantry,24500W
Gloucester City Council,23UE,Docks Complex - Services,RB100,Catering Provisions -Food,5110,food,21/08/2015,406653,12.67,NET,Janes Pantry,24500W
Gloucester City Council,23UE,Docks Complex - Services,RB100,Catering Provisions -Food,5110,food,21/08/2015,406654,17.53,NET,Janes Pantry,24500W
Gloucester City Council,23UE,Docks Complex - Services,RB100,Catering Provisions -Food,5110,food,21/08/2015,406655,7.53,NET,Janes Pantry,24500W
Gloucester City Council,23UE,Docks Complex - Services,RB100,Catering Provisions -Food,5110,food,21/08/2015,406656,16.13,NET,Janes Pantry,24500W
Gloucester City Council,23UE,Docks Complex - Services,RB100,Catering Provisions -Food,5110,food,21/08/2015,406677,19.78,NET,Janes Pantry,24500W
Gloucester City Council,23UE,Docks Complex - Services,RB100,Catering Provisions -Food,5110,food,21/08/2015,406678,5.28,NET,Janes Pantry,24500W
Gloucester City Council,23UE,Docks Complex - Services,RB100,Catering Provisions -Food,5110,food,21/08/2015,406679,11.04,NET,Janes Pantry,24500W
Gloucester City Council,23UE,Docks Complex - Services,RB100,Catering Provisions -Food,5110,food,21/08/2015,406680,16.13,NET,Janes Pantry,24500W
Gloucester City Council,23UE,Docks Complex - Services,RB100,Catering Provisions -Food,5110,food,21/08/2015,406681,16.13,NET,Janes Pantry,24500W
Gloucester City Council,23UE,Docks Complex - Services,RB100,Catering Provisions -Food,5110,food,21/08/2015,406682,14.4,NET,Janes Pantry,24500W
Gloucester City Council,23UE,Docks Complex - Services,RB100,Catering Provisions -Food,5110,food,21/08/2015,406683,13.52,NET,Janes Pantry,24500W
Gloucester City Council,23UE,Docks Complex - Services,RB100,Catering Provisions -Food,5110,food,21/08/2015,406684,8.9,NET,Janes Pantry,24500W
Gloucester City Council,23UE,Docks Complex - Services,RB100,Catering Provisions -Food,5110,food,21/08/2015,406685,7.72,NET,Janes Pantry,24500W
Gloucester City Council,23UE,Docks Complex - Services,RB100,Catering Provisions -Food,5110,food,21/08/2015,406686,11.73,NET,Janes Pantry,24500W
Gloucester City Council,23UE,Docks Complex - Services,RB100,Catering Provisions -Food,5110,food,21/08/2015,406687,25.96,NET,Janes Pantry,24500W
Gloucester City Council,23UE,Docks Complex - Services,RB100,Catering Provisions -Food,5110,food,21/08/2015,406688,13.05,NET,Janes Pantry,24500W
Gloucester City Council,23UE,Docks Complex - Services,RB100,Catering Provisions -Food,5110,food,21/08/2015,406689,13.58,NET,Janes Pantry,24500W
Gloucester City Council,23UE,Docks Complex - Services,RB100,Catering Provisions -Food,5110,food,21/08/2015,406690,6.65,NET,Janes Pantry,24500W
Gloucester City Council,23UE,Environmental Planning,LM340,Operational Materials,5070,Pliock Court works,21/08/2015,405686,236,NET,Greenfields Garden Services Ltd,48130G
Gloucester City Council,23UE,Environmental Planning,LM340,Operational Materials,5070,Plock Court works,21/08/2015,405685,236,NET,Greenfields Garden Services Ltd,48130G
Gloucester City Council,23UE,REDACTED,REDACTED,REDACTED,REDACTED,REDACTED,21/08/2015,REDACTED,1769.05,NET,REDACTED,REDACTED
Gloucester City Council,23UE,REDACTED,REDACTED,REDACTED,REDACTED,REDACTED,21/08/2015,REDACTED,370,NET,REDACTED,REDACTED
Gloucester City Council,23UE,Homelessness Prevention,CH122,Fees For Services Received,5350,REDACTED,21/08/2015,406814,625,NET,Smiths Of Newent,15285J
Gloucester City Council,23UE,Investment Property,RB500,General Repair/Maint Buildings,3000,"Gas - Guildhall, 08/05/2015",21/08/2015,402872,198.66,NET,Hewer Facilities Mgt Ltd,05232A
Gloucester City Council,23UE,Investment Property,RB500,General Repair/Maint Buildings,3000,Specialist Services 05/08/2015,21/08/2015,406583,338.53,NET,Cooltherm,06087Z
Gloucester City Council,23UE,Investment Property,RB500,Repair/Maint Of Fixed Plant,3006,Engineers 13/07/2015,21/08/2015,406402,350,NET,Airvent Systems Limited,51073T
Gloucester City Council,23UE,Parks Contract Management,LP100,Maint Of Grounds - General,3030,Horsbere Meadow,21/08/2015,405916,45,NET,Greenfields Garden Services Ltd,48130G
Gloucester City Council,23UE,Parks Contract Management,LP100,Maint Of Grounds - General,3030,Parks,21/08/2015,405714,424.77,NET,Enterprise (Aol) Ltd,06695G
Gloucester City Council,23UE,Publications,RC450,Basic Pay -Admin /Prof Staff,2601,COMMS TEAM,21/08/2015,406094,32000,NET,Gloucestershire County Council,18650D
Gloucester City Council,23UE,Publications,RC450,Basic Pay -Admin /Prof Staff,2601,COMMS TEAM,21/08/2015,406095,8750,NET,Gloucestershire County Council,18650D
Gloucester City Council,23UE,Publications,RC450,Fees For Services Received,5350,COMMS TEAM,21/08/2015,406096,20000,NET,Gloucestershire County Council,18650D
Gloucester City Council,23UE,Retail Market - Landlord,HM300,Trade Refuse Collection,3630,Food Waste June 2015,21/08/2015,406517,120,NET,B & S Pointon Ltd,06253G
Gloucester City Council,23UE,Shopmobility,PE200,Maintenance Of Equipment,5030,Aug-Oct 2015 Citysafe mambership,21/08/2015,406822,91.25,NET,Gloucester City Safe,14709J
Gloucester City Council,23UE,Vehicles,RS140,Fuel,4012,vehicle fuel,21/08/2015,406815,448.61,NET,Allstar Business Solutions Ltd (Arval),06594A
Gloucester City Council,23UE,Cemeteries,HC300,Basic Pay - Temporary Staff,2751,STAFF W/E 12/07/15,24/08/2015,406588,439.88,NET,Premiere Employment Group Ltd,55468Z
Gloucester City Council,23UE,Civil Parking Enforcement,PT741,Computer Software Maintenance,5427,MAY/JUNE 2015,24/08/2015,406176,1405.27,NET,Chipside Ltd,06535T
Gloucester City Council,23UE,Client Revs & Bens Contract,RT240,Fees For Services Received,5350,Grant Migrant Workers 2015,24/08/2015,406323,1041,NET,Civica Uk Ltd,10841X
Gloucester City Council,23UE,Countryside Unit,LP201,Contract Cleaning,3620,CLEANING SERVICES,24/08/2015,406868,130,NET,Cv Fisher Cleaning Services,14907C
Gloucester City Council,23UE,Crematorium,HC200,Cleaning Materials,3600,SANITARY BIN,24/08/2015,406244,17.28,NET,Minster Cleaning Services,02158R
Gloucester City Council,23UE,Crematorium,HC200,Maint Of Grounds - General,3030,HOSE,24/08/2015,406168,133.31,NET,Countrywide Farmers,55687J
Gloucester City Council,23UE,Development Management,PT200,Consultants Fees,5349,PEEL CENTRE,24/08/2015,406860,7337.5,NET,Rapleys Llp,15807Y
Gloucester City Council,23UE,REDACTED,REDACTED,REDACTED,REDACTED,REDACTED,24/08/2015,REDACTED,180,NET,REDACTED,REDACTED
Gloucester City Council,23UE,REDACTED,REDACTED,REDACTED,REDACTED,REDACTED,24/08/2015,REDACTED,180,NET,REDACTED,REDACTED
Gloucester City Council,23UE,External Communications,RC431,Publications,5060,CITY LIFE,24/08/2015,406744,12000,NET,Gloucestershire County Council,18650D
Gloucester City Council,23UE,REDACTED,REDACTED,REDACTED,REDACTED,REDACTED,24/08/2015,REDACTED,80,NET,REDACTED,REDACTED
Gloucester City Council,23UE,Homelessness,CH120,Board And Lodging,5515,B&B PAYMENTS,24/08/2015,406871,1665.89,NET,Dorchester Guest House,12298D
Gloucester City Council,23UE,Homelessness,CH120,Board And Lodging,5515,B&B PAYMENTS,24/08/2015,406872,1229.94,NET,James Legge Property (Ltd),07844R
Gloucester City Council,23UE,Homelessness,CH120,Board And Lodging,5515,B&B PAYMENTS,24/08/2015,406873,380.43,NET,Kalmwood Ltd,08568G
Gloucester City Council,23UE,Homelessness,CH120,Board And Lodging,5515,B&B PAYMENTS,24/08/2015,406877,2235.76,NET,Carbrey Housing Ltd,11098G
Gloucester City Council,23UE,REDACTED,REDACTED,REDACTED,REDACTED,REDACTED,24/08/2015,REDACTED,2902.84,NET,REDACTED,REDACTED
Gloucester City Council,23UE,REDACTED,REDACTED,REDACTED,REDACTED,REDACTED,24/08/2015,REDACTED,861.14,NET,REDACTED,REDACTED
Gloucester City Council,23UE,REDACTED,REDACTED,REDACTED,REDACTED,REDACTED,24/08/2015,REDACTED,2691.56,NET,REDACTED,REDACTED
Gloucester City Council,23UE,REDACTED,REDACTED,REDACTED,REDACTED,REDACTED,24/08/2015,REDACTED,294.9,NET,REDACTED,REDACTED
Gloucester City Council,23UE,Investment Property,RB500,Fire Alarm Maintenance,3053,contract 2015-16,24/08/2015,406173,306.34,NET,Chubb Fire & Security Ltd,54582K
Gloucester City Council,23UE,Investment Property,RB500,Lift Maintenance,3051,BLACKFRIARS,24/08/2015,405046,106.25,NET,Pickerings Europe Ltd,58816U
Gloucester City Council,23UE,Investment Property,RB500,Lift Maintenance,3051,Lift Inspection - Eastgate Market,24/08/2015,403037,242.5,NET,Pickerings Europe Ltd,58816U
Gloucester City Council,23UE,Investment Property,RB500,Lift Maintenance,3051,Lift Inspection - GL1,24/08/2015,403042,242.5,NET,Pickerings Europe Ltd,58816U
Gloucester City Council,23UE,Investment Property,RB500,Lift Maintenance,3051,Lift Inspection - Guildhall,24/08/2015,403041,375.5,NET,Pickerings Europe Ltd,58816U
Gloucester City Council,23UE,Investment Property,RB500,Lift Maintenance,3051,Lift Inspection - HKP,24/08/2015,403039,373.75,NET,Pickerings Europe Ltd,58816U
Gloucester City Council,23UE,Investment Property,RB500,Lift Maintenance,3051,Lift Inspections,24/08/2015,402985,121.25,NET,Pickerings Europe Ltd,58816U
Gloucester City Council,23UE,Kings Quarter,RY146,Contract Payments,20,Architectural Services,24/08/2015,406349,9700,CAP,Building Design Partnership Ltd,15758K
Gloucester City Council,23UE,Retail Market - Landlord,HM300,Sewerage And Environ Charges,3402,MARKET,24/08/2015,406852,180,NET,Eezeeflow Drain Services,11587C
Gloucester City Council,23UE,Cemeteries,HC300,General Repair/Maint Buildings,3000,Supply and Fit Signs,25/08/2015,404325,335,NET,Hanman Split Ltd,56889J
Gloucester City Council,23UE,Client Revs & Bens Contract,RT240,Bailiffs Fees,5368,VAT on statutory fees,25/08/2015,406510,0,NET,Bristow & Sutor,05450M
Gloucester City Council,23UE,Client Revs & Bens Contract,RT240,Bailiffs Fees,5368,VAT on statutory fees,25/08/2015,406511,0,NET,Bristow & Sutor,05450M
Gloucester City Council,23UE,Client Revs & Bens Contract,RT240,Bailiffs Fees,5368,VAT on statutory fees,25/08/2015,406512,0,NET,Bristow & Sutor,05450M
Gloucester City Council,23UE,Coll Fund Revenue Account,ZC100,Nndr Central Share,7474,BRR pooling payment GC Local Share BRR6,25/08/2015,406966,421339,NET,Gloucestershire County Council,18650D
Gloucester City Council,23UE,Coll Fund Revenue Account,ZC100,Nndr Tariff,7473,brr pooling payment BRR6,25/08/2015,406965,1320307,NET,Stroud District Council,74737T
Gloucester City Council,23UE,Corporate Reporting /Financing,RC504,Fees For Services Received,5350,LGPS,25/08/2015,406749,5856.84,NET,Gloucestershire County Council,10614L
Gloucester City Council,23UE,Economic Development,FP300,Business Grant,7116,voucher scheme,25/08/2015,406911,293,NET,Lister Communications Ltd,15800N
Gloucester City Council,23UE,Employers Pension Contribs,ZR355,Pension Contribs Incl Backf,2901,pension deficit for GCC August 2015,25/08/2015,406964,217666.66,NET,Gloucestershire County Council,10614L
Gloucester City Council,23UE,REDACTED,REDACTED,REDACTED,REDACTED,REDACTED,25/08/2015,REDACTED,241.25,NET,REDACTED,REDACTED
Gloucester City Council,23UE,Homelessness,CH120,Fees For Services Received,5350,MEDICAL REPORTS,25/08/2015,406909,85,NET,Now Medical,03468L
Gloucester City Council,23UE,Homelessness,CH120,Removal And Storage Fees,5513,TEMPORARY STORAGE JULY 2015,25/08/2015,406915,118.13,NET,Advanced Removals & Storage Ltd,57142R
Gloucester City Council,23UE,Homelessness,CH120,Removal And Storage Fees,5513,TEMPORARY STORAGE JULY 2015,25/08/2015,406920,195.54,NET,Advanced Removals & Storage Ltd,57142R
Gloucester City Council,23UE,Homelessness,CH120,Removal And Storage Fees,5513,TEMPORARY STORAGE JULY 2015,25/08/2015,406918,69.43,NET,Advanced Removals & Storage Ltd,57142R
Gloucester City Council,23UE,Homelessness,CH120,Removal And Storage Fees,5513,TEMPORARY STORAGE JULY 2015,25/08/2015,406916,87.43,NET,Advanced Removals & Storage Ltd,57142R
Gloucester City Council,23UE,Homelessness,CH120,Removal And Storage Fees,5513,TEMPORARY STORAGE JULY 2015,25/08/2015,406907,405.81,NET,Advanced Removals & Storage Ltd,57142R
Gloucester City Council,23UE,Homelessness,CH120,Removal And Storage Fees,5513,TEMPORARY STORAGE JULY 2015,25/08/2015,406919,117.32,NET,Advanced Removals & Storage Ltd,57142R
Gloucester City Council,23UE,Homelessness,CH120,Removal And Storage Fees,5513,TEMPORARY STORAGE JULY 2015,25/08/2015,406917,39.11,NET,Advanced Removals & Storage Ltd,57142R
Gloucester City Council,23UE,Homelessness Prevention,CH122,Fees For Services Received,5350,med report i norton-voysey,25/08/2015,406914,20.5,NET,Dr R Watkins & Partners,59237H
Gloucester City Council,23UE,Homelessness Prevention,CH122,Fees For Services Received,5350,MEDICAL REPORTS,25/08/2015,406909,25,NET,Now Medical,03468L
Gloucester City Council,23UE,Investment Property,RB500,General Repair/Maint Buildings,3000,RANGERS CENTRE,25/08/2015,406850,750,NET,Three Counties Drain Service,44033V
Gloucester City Council,23UE,Investment Property,RB500,Repair/Maint Of Fixed Plant,3006,CITY MUSEUM,25/08/2015,397034,212.5,NET,Hewer Facilities Mgt Ltd,05232A
Gloucester City Council,23UE,Investment Property,RB500,Repair/Maint Of Fixed Plant,3006,CREDITED ON 101778,25/08/2015,406929,62.5,NET,Hewer Facilities Mgt Ltd,05232A
Gloucester City Council,23UE,Kings Quarter,RY146,Contract Payments,20,BUS STATION,25/08/2015,406755,1595,CAP,Greenhatch Group Ltd,15776H
Gloucester City Council,23UE,Kings Quarter,RY146,Contract Payments,20,Bus station public exhibition,25/08/2015,406562,1113,CAP,Consensus Communications Ltd,15933S
Gloucester City Council,23UE,Kings Quarter,RY146,Contract Payments,20,tactile model,25/08/2015,406563,470,CAP,Amalgam Modelmaking Ltd,15938F
Gloucester City Council,23UE,Nms Contract,HI102,Additional Non-Tender Items,6973,gloves,25/08/2015,406817,64.25,NET,Safpro Industrial Supply Co,39190W
Gloucester City Council,23UE,Nms Contract,HI102,Printing,5300,Recycling leaflets,25/08/2015,406819,309,NET,In2print Ltd,55471L
Gloucester City Council,23UE,Printing,RP103,Printing,5300,Various Print Jobs,25/08/2015,406501,934,NET,Alpha Colour Printers Ltd,00945B
Gloucester City Council,23UE,Rehousing,CH111,Fees For Services Received,5350,medical report,25/08/2015,406912,20.5,NET,Kingsholm Surgery,11948S
Gloucester City Council,23UE,Rehousing,CH111,Fees For Services Received,5350,MEDICAL REPORTS,25/08/2015,406909,225,NET,Now Medical,03468L
Gloucester City Council,23UE,Rehousing,CH111,Fees For Services Received,5350,med report s cooke,25/08/2015,406913,20.5,NET,Rosebank Health,03041E
Gloucester City Council,23UE,Tic Trading,LT110,Materials For Sale,5080,GOODS FOR RESALE,25/08/2015,406908,306.58,NET,Norfolk China Ltd,12863S
Gloucester City Council,23UE,Tic Trading,LT110,Materials For Sale,5080,GOODS FOR RESALE,25/08/2015,406921,255,NET,Magnartism Ltd,09098P
Gloucester City Council,23UE,Tourism Marketing,LT100,Other Minor Supplies Services,5590,BAGS,25/08/2015,406157,245,NET,Fleet Retail Packaging Ltd,04259N
Gloucester City Council,23UE,Tourism Marketing,LT100,Window Cleaning,3610,WINDOW CLEANING,25/08/2015,406910,36,NET,Interserve Fs (Uk) Limited,00442K
Gloucester City Council,23UE,Utilities,PT502,Electricity Supply,3110,UTILITIES TO AUG 2015,25/08/2015,406924,10329.77,NET,West Mercia Energy,11669Z
Gloucester City Council,23UE,Allotments,HI104,Fees For Services Received,5350,skip removal,26/08/2015,406971,144.73,NET,Smiths (Gloucester) Ltd,40995Z
Gloucester City Council,23UE,Allotments,HI104,Operational Equipment <5000,5012,Esrcourt Close allotment works,26/08/2015,406972,15,NET,Smiths (Gloucester) Ltd,40995Z
Gloucester City Council,23UE,Alney Island,PY128,Contract Payments,20,GATE,26/08/2015,406752,392,CAP,Centrewire Ltd,54156P
Gloucester City Council,23UE,Business Transformation & Tech,RT700,Subscriptions,5600,Subscriptions,26/08/2015,405697,2484,NET,Riba Enterprises,09988U
Gloucester City Council,23UE,Cemeteries,HC300,Basic Pay - Temporary Staff,2751,Temporary staff w/e 02/08/2015,26/08/2015,406497,469.2,NET,Premiere Employment Group Ltd,55468Z
Gloucester City Council,23UE,Cemeteries,HC300,Basic Pay - Temporary Staff,2751,temporary staff w/e 02/08/2015,26/08/2015,406498,439.88,NET,Premiere Employment Group Ltd,55468Z
Gloucester City Council,23UE,Cemeteries,HC300,Basic Pay - Temporary Staff,2751,STAFF W/E 09/08/15,26/08/2015,406735,439.88,NET,Premiere Employment Group Ltd,55468Z
Gloucester City Council,23UE,Cemeteries,HC300,Basic Pay - Temporary Staff,2751,STAFF W/E 12/07/15,26/08/2015,406587,469.2,NET,Premiere Employment Group Ltd,55468Z
Gloucester City Council,23UE,Cemeteries,HC300,Clothing,5200,BOOTS,26/08/2015,406848,164.1,NET,Safpro Industrial Supply Co,39190W
Gloucester City Council,23UE,City Museum And Art Gallery,LM200,Operational Equipment <5000,5012,Purple Balloons with white ink,26/08/2015,406346,296,NET,Banners & Balloons,58000D
Gloucester City Council,23UE,City Museum And Art Gallery,LM200,Printing,5300,BADGES,26/08/2015,406731,373,NET,Emblem Print Products Limited,54871Z
Gloucester City Council,23UE,City Museum And Art Gallery,LM200,Printing,5300,PRINTING,26/08/2015,406090,110,NET,Paddock Print,03014H
Gloucester City Council,23UE,Client Revs & Bens Contract,RT240,Bailiffs Fees,5368,CTAX FEES,26/08/2015,406854,25,NET,Bristow & Sutor,05450M
Gloucester City Council,23UE,Contact Centre,RB300,Postages,5400,ACCT 0252446000,26/08/2015,406866,1007.68,NET,Royal Mail S.Wales & South West,35830S
Gloucester City Council,23UE,Crematorium,HC200,Basic Pay - Temporary Staff,2751,STAFF W/E 09/08/15,26/08/2015,406736,439.88,NET,Premiere Employment Group Ltd,55468Z
Gloucester City Council,23UE,Crematorium,HC200,Cleaning Materials,3600,standard toilet rolls,26/08/2015,406639,44,NET,Safpro Industrial Supply Co,39190W
Gloucester City Council,23UE,Development Management,PT200,Advertising And Publicity,5702,Adverts 20/08/15,26/08/2015,406955,233.73,NET,Local World Ltd,08556P
Gloucester City Council,23UE,Flooding And Drainage,HE306,Maint Of Grounds - General,3030,various clearance works,26/08/2015,406961,630,NET,Rdb Safety Boat Ltd,13507J
Gloucester City Council,23UE,Folk Museum,LM210,Security Services Fees,5351,FOLK MUSEUM,26/08/2015,406730,117.11,NET,Chubb Fire & Security Ltd,54582K
Gloucester City Council,23UE,Folk Museum,LM210,Security Services Fees,5351,FOLK MUSEUM,26/08/2015,406746,165.25,NET,Chubb Fire & Security Ltd,54582K
Gloucester City Council,23UE,REDACTED,REDACTED,REDACTED,REDACTED,REDACTED,26/08/2015,REDACTED,1328.6,NET,REDACTED,REDACTED
Gloucester City Council,23UE,Investment Property,RB500,General Repair/Maint Buildings,3000,Various Items,26/08/2015,406004,1166,NET,Airvent Systems Limited,51073T
Gloucester City Council,23UE,Investment Property,RB500,Repair/Maint Of Fixed Plant,3006,Engineers 15/06/2015,26/08/2015,404579,256,NET,Airvent Systems Limited,51073T
Gloucester City Council,23UE,Managing Director,RE100,Conference/Meeting Expenses,5510,training course,26/08/2015,406974,889,NET,Solace,07481F
Gloucester City Council,23UE,Nms Contract,HI102,Contracted Services,6970,July 2015 service fee,26/08/2015,406551,488913.04,NET,Enterprise (Aol) Ltd,06695G
Gloucester City Council,23UE,Pest Control,HD400,Fees For Services Received,5350,Pest control FEB-JUL15,26/08/2015,406957,7995,NET,Falconry Services Ltd,10692P
Gloucester City Council,23UE,Printing,RP103,Printing,5300,Various Print Jobs July 2015,26/08/2015,406509,684,NET,Alpha Colour Printers Ltd,00945B
Gloucester City Council,23UE,Retail Market - Landlord,HM300,Hire Of Equipment,5020,Citysafe membership 2015-16,26/08/2015,406960,365,NET,Gloucester City Safe,14709J
Gloucester City Council,23UE,Tourism Marketing,LT100,Exhibits And Collections,5038,Rugby Beach Weekender,26/08/2015,406956,200,NET,Gourmet Food Markets T/A Great Taste Markets,15038E
Gloucester City Council,23UE,Ugly Structures,GY010,Contract Payments,20,St Nicholas Church lighting phase 3,26/08/2015,406962,3847.33,CAP,It Does Ltd,15108J
Gloucester City Council,23UE,Business Transformation & Tech,RT700,Fees For Services Received,5350,GCH SEPERATION CCN006,27/08/2015,407043,27508.45,NET,Civica Uk Ltd,10841X
Gloucester City Council,23UE,Cemeteries,HC300,Fuel,4012,Gasoil class A2,27/08/2015,406527,868,NET,Cpl Petroleum,55192U
Gloucester City Council,23UE,City Museum And Art Gallery,LM200,Window Cleaning,3610, WINDOW CLEANING,27/08/2015,406760,150,NET,Al'S Window Cleaning,15792K
Gloucester City Council,23UE,City Museum Catering,LM202,Catering Provisions -Food,5110,food,27/08/2015,405718,115.8,NET,Woodward Foodservice,10714F
Gloucester City Council,23UE,City Museum Catering,LM202,Catering Provisions -Food,5110,Food,27/08/2015,405700,121.38,NET,Woodward Foodservice,10714F
Gloucester City Council,23UE,City Museum Catering,LM202,Catering Provisions -Food,5110,Food,27/08/2015,405719,89.09,NET,Woodward Foodservice,10714F
Gloucester City Council,23UE,City Museum Catering,LM202,Catering Provisions -Food,5110,Food,27/08/2015,405994,109.34,NET,Woodward Foodservice,10714F
Gloucester City Council,23UE,Client Revs & Bens Contract,RT240,Bailiffs Fees,5368,VAT on fees collected,27/08/2015,406977,0,NET,Phoenix Commercial Collections Ltd,13435J
Gloucester City Council,23UE,Client Revs & Bens Contract,RT240,Bailiffs Fees,5368,VAT on fees collected,27/08/2015,406978,0,NET,Phoenix Commercial Collections Ltd,13435J
Gloucester City Council,23UE,Client Revs & Bens Contract,RT240,Bailiffs Fees,5368,VAT on fees collected,27/08/2015,406979,0,NET,Phoenix Commercial Collections Ltd,13435J
Gloucester City Council,23UE,Contact Centre,RB300,Basic Pay - Temporary Staff,2751,Temporary staff w/e 16/8/15,27/08/2015,407040,555,NET,Morgan Hunt Uk Ltd,04451S
Gloucester City Council,23UE,Contact Centre,RB300,Basic Pay - Temporary Staff,2751,temporary staff w/e 21/8/15,27/08/2015,407037,185.02,NET,One To One Recruitment,04752H
Gloucester City Council,23UE,Contact Centre,RB300,Basic Pay - Temporary Staff,2751,temporary staff w/e 21/8/15,27/08/2015,407039,370.04,NET,One To One Recruitment,04752H
Gloucester City Council,23UE,Contact Centre,RB300,Basic Pay - Temporary Staff,2751,TEMPORARY STAFF W/E 21/8/15,27/08/2015,407035,472.12,NET,One To One Recruitment,04752H
Gloucester City Council,23UE,Contact Centre,RB300,Basic Pay - Temporary Staff,2751,TEMPORARY STAFF W/E 21/8/15,27/08/2015,407036,422.36,NET,One To One Recruitment,04752H
Gloucester City Council,23UE,Contact Centre,RB300,Basic Pay - Temporary Staff,2751,TEMPORARY STAFF W/E 21/8/15,27/08/2015,407038,551.16,NET,One To One Recruitment,04752H
Gloucester City Council,23UE,Contact Centre,RB300,Stationery,5302,stationery,27/08/2015,407022,12.94,NET,Lyreco Uk Ltd,11746G
Gloucester City Council,23UE,Contact Centre,RB300,Stationery,5302,STATIONERY,27/08/2015,407024,71.22,NET,Lyreco Uk Ltd,11746G
Gloucester City Council,23UE,Council Streetcare Team,HI101,Operational Equipment <5000,5012,cable ties,27/08/2015,407026,10,NET,Ermin Plant Hire & Services Ltd,14150V
Gloucester City Council,23UE,Environmental Planning,LM340,Contributions,9120,OLD CROWN INN PLAQUE,27/08/2015,407049,496.2,NET,Leander Architectural,02831Z
Gloucester City Council,23UE,Financial Services,RT200,Publications,5060,frc to mar 2016,27/08/2015,407021,308,NET,The Financial Reporting Council,09736A
Gloucester City Council,23UE,Flooding And Drainage,HE306,Maint Of Grounds - General,3030,THE TWYVER,27/08/2015,406851,430,NET,Three Counties Drain Service,44033V
Gloucester City Council,23UE,Folk Museum,LM210,Window Cleaning,3610, WINDOW CLEANING,27/08/2015,406760,150,NET,Al'S Window Cleaning,15792K
Gloucester City Council,23UE,General Works Fund,RY203,Contract Payments,20,Crem Heating System,27/08/2015,401278,2800,CAP,Briar Associates,15032T
Gloucester City Council,23UE,REDACTED,REDACTED,REDACTED,REDACTED,REDACTED,27/08/2015,REDACTED,395,NET,REDACTED,REDACTED
Gloucester City Council,23UE,Guildhall Events,LA200,Advertising And Publicity,5702,A5 FLYERS,27/08/2015,407051,175,NET,Fatflyers.Com,15810K
Gloucester City Council,23UE,Guildhall Events,LA200,Advertising And Publicity,5702,ADVERT,27/08/2015,407052,500,NET,City Pages Ltd (Whatson),15978T
Gloucester City Council,23UE,REDACTED,REDACTED,REDACTED,REDACTED,REDACTED,27/08/2015,REDACTED,180,NET,REDACTED,REDACTED
Gloucester City Council,23UE,REDACTED,REDACTED,REDACTED,REDACTED,REDACTED,27/08/2015,REDACTED,150,NET,REDACTED,REDACTED
Gloucester City Council,23UE,Guildhall Sound Desks,LY059,Contract Payments,20,Various Items,27/08/2015,405951,25195.08,CAP,Sse Audio Group,15768G
Gloucester City Council,23UE,REDACTED,REDACTED,REDACTED,REDACTED,REDACTED,27/08/2015,REDACTED,440,CAP,REDACTED,REDACTED
Gloucester City Council,23UE,REDACTED,REDACTED,REDACTED,REDACTED,REDACTED,27/08/2015,REDACTED,300,NET,REDACTED,REDACTED
Gloucester City Council,23UE,Investment Property,RB500,General Repair/Maint Buildings,3000,FOLK MUSEUM,27/08/2015,407004,110,NET,Three Counties Drain Service,44033V
Gloucester City Council,23UE,Investment Property,RB500,General Repair/Maint Buildings,3000,HERBERT WAREHOUSE,27/08/2015,407005,110,NET,Three Counties Drain Service,44033V
Gloucester City Council,23UE,Kings Quarter,RY146,Contract Payments,20,KINGS QTR,27/08/2015,406743,987,CAP,Gloucestershire County Council,18650D
Gloucester City Council,23UE,Land Searches,RO300,Charges For Services,9300,LAND CHARGES,27/08/2015,406750,6073.29,NET,Gloucestershire County Council,18650D
Gloucester City Council,23UE,Members Support,RC300,Members Training,5535,STRATEGY SEMINAR,27/08/2015,407044,250,NET,Frontline Consulting Associates,15799V
Gloucester City Council,23UE,Off Street Car Parks,PP110,Fees For Services Received,5350,Sep-15,27/08/2015,406747,505.94,NET,Parkeon Ltd,03238G
Gloucester City Council,23UE,Off Street Car Parks,PP110,Rents,3200,CAR PARK,27/08/2015,407018,63528.19,NET,Workman Llp,11021M
Gloucester City Council,23UE,Off Street Car Parks,PP110,Rents,3200,CAR PARK OFFICE,27/08/2015,407017,125,NET,Workman Llp,11021M
Gloucester City Council,23UE,Off Street Car Parks,PP110,Service Charges,3020,CAR PARK,27/08/2015,407018,1927.71,NET,Workman Llp,11021M
Gloucester City Council,23UE,Off Street Car Parks,PP110,Service Charges,3020,CAR PARK OFFICE,27/08/2015,407017,245.1,NET,Workman Llp,11021M
Gloucester City Council,23UE,Off Street Car Parks,PP110,Service Charges,3020,PEDESTRIAN ACCESS,27/08/2015,407015,908.78,NET,Workman Llp,11021M
Gloucester City Council,23UE,Registration Of Electors,RS400,Fees For Services Received,5350,POLLING BOOTHS,27/08/2015,405039,1250,NET,Armstrong Removals,04632N
Gloucester City Council,23UE,Stationery Services,RS150,Stationery,5302,stationery,27/08/2015,407025,62.68,NET,Lyreco Uk Ltd,11746G
Gloucester City Council,23UE,Unallocated It,RY525,Contract Payments,20,"Windows7, Data Centre & PSN projects",27/08/2015,407048,56926.63,CAP,Civica Uk Ltd,10841X
Gloucester City Council,23UE,Contact Centre,RB300,Basic Pay - Temporary Staff,2751,temporary staff w/e 23/8/15,28/08/2015,407056,550,NET,Morgan Hunt Uk Ltd,04451S
Gloucester City Council,23UE,Contact Centre,RB300,Postages,5400,ENVELOPES,28/08/2015,406741,109,NET,Encore Envelopes Ltd,13782H
Gloucester City Council,23UE,Contact Centre,RB300,Postages,5400,ENVELOPES,28/08/2015,406753,110.5,NET,Encore Envelopes Ltd,13782H
Gloucester City Council,23UE,Contact Centre,RB300,Postages,5400,ENVELOPES,28/08/2015,406856,181.2,NET,Encore Envelopes Ltd,13782H
Gloucester City Council,23UE,Contact Centre,RB300,Postages,5400,ENVELOPES,28/08/2015,406857,118.68,NET,Encore Envelopes Ltd,13782H
Gloucester City Council,23UE,Contact Centre,RB300,Stationery,5302,Stationery,28/08/2015,406394,7.2,NET,Lyreco Uk Ltd,11746G
Gloucester City Council,23UE,Council Streetcare Team,HI101,Maint Of Grounds - General,3030,1 HAMPTON COURT,28/08/2015,407013,285,NET,Enterprise (Aol) Ltd,06695G
Gloucester City Council,23UE,Countryside Unit,LP201,Oil,4013,FUEL,28/08/2015,407107,11.5,NET,Hobbs Bros Ltd,05942J
Gloucester City Council,23UE,Crematorium,HC200,Cleaning Materials,3600,TOILET ROLLS,28/08/2015,406849,22,NET,Safpro Industrial Supply Co,39190W
Gloucester City Council,23UE,Dog Warden,HE400,Other Minor Supplies Services,5590,STRAY DOGS,28/08/2015,407012,246,NET,Enterprise (Aol) Ltd,06695G
Gloucester City Council,23UE,Events,LT410,Fees For Services Received,5350,Believe in Gloucester Awards sponsorship,28/08/2015,406821,2500,NET,Local World Ltd,08556P
Gloucester City Council,23UE,Flooding And Drainage,HE306,Maint Of Grounds - General,3030,RIVER TWYVER,28/08/2015,406740,2800,NET,Tcv T/A The Conservation Volunteers,55897V
Gloucester City Council,23UE,Guildhall Events,LA200,Advertising And Publicity,5702,ADVERT 21/08/15,28/08/2015,407108,400,NET,Local World Ltd,08556P
Gloucester City Council,23UE,REDACTED,REDACTED,REDACTED,REDACTED,REDACTED,28/08/2015,REDACTED,100,NET,REDACTED,REDACTED
Gloucester City Council,23UE,REDACTED,REDACTED,REDACTED,REDACTED,REDACTED,28/08/2015,REDACTED,150,NET,REDACTED,REDACTED
Gloucester City Council,23UE,REDACTED,REDACTED,REDACTED,REDACTED,REDACTED,28/08/2015,REDACTED,1000,NET,REDACTED,REDACTED
Gloucester City Council,23UE,REDACTED,REDACTED,REDACTED,REDACTED,REDACTED,28/08/2015,REDACTED,0,NET,REDACTED,REDACTED
Gloucester City Council,23UE,REDACTED,REDACTED,REDACTED,REDACTED,REDACTED,28/08/2015,REDACTED,550,NET,REDACTED,REDACTED
Gloucester City Council,23UE,REDACTED,REDACTED,REDACTED,REDACTED,REDACTED,28/08/2015,REDACTED,400,NET,REDACTED,REDACTED
Gloucester City Council,23UE,REDACTED,REDACTED,REDACTED,REDACTED,REDACTED,28/08/2015,REDACTED,400,NET,REDACTED,REDACTED
Gloucester City Council,23UE,REDACTED,REDACTED,REDACTED,REDACTED,REDACTED,28/08/2015,REDACTED,489.44,NET,REDACTED,REDACTED
Gloucester City Council,23UE,Homelessness Prevention,CH122,Fees For Services Received,5350,LICENCE,28/08/2015,407090,1712,NET,Experian Ltd,57191B
Gloucester City Council,23UE,REDACTED,REDACTED,REDACTED,REDACTED,REDACTED,28/08/2015,REDACTED,530,NET,REDACTED,REDACTED
Gloucester City Council,23UE,Innsworth Lane Sports Pitches,LY079,Contract Payments,20,INNSWORTH LANE,28/08/2015,405277,2173,CAP,Greenfields Garden Services Ltd,48130G
Gloucester City Council,23UE,Investment Property,RB500,Emergency Lighting,3055,CREM,28/08/2015,407094,346.5,NET,Adt Fire & Security Plc,54086D
Gloucester City Council,23UE,Investment Property,RB500,Fire Alarm Maintenance,3053,Engineer 02/07/2015,28/08/2015,405526,88.5,NET,Adt Fire & Security Plc,54086D
Gloucester City Council,23UE,Investment Property,RB500,Fire Alarm Maintenance,3053,Engineer 03/02/2015,28/08/2015,405558,135,NET,Adt Fire & Security Plc,54086D
Gloucester City Council,23UE,Nms Contract,HI102,Contracted Services,6970,Aug15 service fees,28/08/2015,407047,486444.15,NET,Enterprise (Aol) Ltd,06695G
Gloucester City Council,23UE,Off Street Car Parks,PP110,Contracted Services,6970,Trade  Waste Service 1/1/15 - 31/3/15,28/08/2015,395069,290.42,NET,Enterprise (Aol) Ltd,06695G
Gloucester City Council,23UE,Parks Contract Management,LP100,Maint Of Grounds - General,3030,armscroft park,28/08/2015,407011,66.96,NET,Enterprise (Aol) Ltd,06695G
Gloucester City Council,23UE,REDACTED,REDACTED,REDACTED,REDACTED,REDACTED,28/08/2015,REDACTED,82.85,NET,REDACTED,REDACTED
Gloucester City Council,23UE,REDACTED,REDACTED,REDACTED,REDACTED,REDACTED,28/08/2015,REDACTED,65,NET,REDACTED,REDACTED
Gloucester City Council,23UE,Safer Stronger Communities,FP841,Other Minor Supplies Services,5590,Acrylic awards,28/08/2015,407087,225.5,NET,Severn Signs Ltd,49841D
Gloucester City Council,23UE,Safer Stronger Communities,FP841,Other Minor Supplies Services,5590,vision impairment goggles,28/08/2015,406959,52.33,NET,Dia (Int) Ltd,06918W
Gloucester City Council,23UE,Superbreak,LT104,Materials For Sale,5080,ticket sales,28/08/2015,407055,267.5,NET,Superbreak Mini Holidays,00712D
Gloucester City Council,23UE,Superbreak,LT104,Sale Of Goods And Services,9230,ticket sales,28/08/2015,407055,-22.28,NET,Superbreak Mini Holidays,00712D
Gloucester City Council,23UE,Vehicles,RS140,Routine R And M - Vehicles,4011,VE08 OUG,28/08/2015,406101,492.66,NET,Blade Motor Company,13671U
Gloucester City Council,23UE,City Museum Catering,LM202,Catering Provisions -Food,5110,Milk,,405709,6.9,NET,Total Produce Gloucester,12645E
Gloucester City Council,23UE,City Museum Catering,LM202,Catering Provisions -Food,5110,Milk,,405992,4.6,NET,Total Produce Gloucester,12645E
Gloucester City Council,23UE,City Museum Catering,LM202,Catering Provisions -Food,5110,Milk,,405993,2.3,NET,Total Produce Gloucester,12645E
Gloucester City Council,23UE,Contact Centre,RB300,Other Minor Supplies Services,5590,SEP15 facility fee,,406958,237.57,NET,Office Response,09439K
Gloucester City Council,23UE,Financial Services,RT200,Fees For Services Received,5350,Annual support & PMI for CCTV,,406963,320,NET,Asguk (Systems) Ltd,07167R
Gloucester City Council,23UE,Financial Services,RT200,Fees For Services Received,5350,The Kings Grave,,393928,2400,NET,Bookpoint Ltd,52241L
Gloucester City Council,23UE,Guildhall Bar And Caf�,LA210,Other Catering Provisions,5112,Cappuccino Saucers,,402814,23.89,NET,Nisbets,55372P
Gloucester City Council,23UE,REDACTED,REDACTED,REDACTED,REDACTED,REDACTED,,REDACTED,110,NET,REDACTED,REDACTED
Gloucester City Council,23UE,Investment Property,RB500,Fees For Services Received,5350,CREDITED ON 185951,,405874,2431.5,NET,Alder King,15624J
Gloucester City Council,23UE,Kings Square,GY017,Contract Payments,20,KINGS SQUARE,,407103,2137,CAP,Talus Construction Ltd,10401G
Gloucester City Council,23UE,REDACTED,REDACTED,REDACTED,REDACTED,REDACTED,,REDACTED,21,NET,REDACTED,REDACTED
Gloucester City Council,23UE,Meet & Greet,FP309,Other Minor Income,9900,South West - July Issue,,405547,225,NET,Diversified Business Communications Uk Ltd,15016R
Gloucester City Council,23UE,The Arbor,HC501,Catering Provisions -Food,5110,food,,406634,141.39,NET,Janes Pantry,24500W
Gloucester City Council,23UE,The Arbor,HC501,Catering Provisions -Food,5110,food,,407034,180.99,NET,Janes Pantry,24500W
Gloucester City Council,23UE,The Arbor,HC501,Catering Provisions -Food,5110,Food w/e 02/08/2015,,406344,127.65,NET,Janes Pantry,24500W
Gloucester City Council,23UE,The Arbor,HC501,Maint Agreements - Buildings,3010,WARRANTY,,407100,61.58,NET,Caffeica Ltd,11923J
,,,,,,,,Sum:,10977381.17,,,
